Workbook

Sheet Instructions

Sheet Unit Configuration
A7: NCMA Section Properties of Concrete Masonry Walls
A8: User Input Page
A10: Step 1: Project/Unit Details
A11: Date
A12: Project Name
A13: Project Number
A14: Unit Description
A18: Step 2a: Select Pre-defined Unit Configuration or; | K18: Figure 1 - Web Location Example
A29: Step 2b: Enter Unit Configuration
A30: Mortar Thickness (in.) | D30: 0.375 | F30: Specified Dimensions (in.)
A31: Nominal Unit Width (in.) | D31: 8 | F31: =D31-$D$30 -> 7.625
A32: Nominal Unit Height (in.) | D32: 8 | F32: =D32-$D$30 -> 7.625
A33: Nominal Unit Length (in.) | D33: 16 | F33: =D33-$D$30 -> 15.625
A35: Step 3: Enter Face Shell Details
A36: Are face shells different in thickness? | D36: No
A37: =IF(D36="Yes", "First Face shell Thickness (in.)", "Face shell thickness (in.)") -> Face shell thickness (in.) | D37: 1.25
A38: =IF(D36="Yes","Second Faceshell Thickness (in.)", "") -> 
A40: Step 4: Enter Web Details
A41: Number of Webs | D41: 3
A42: Are the webs different in thickness? | D42: No
A43: =IF(COUNTBLANK(A42),"",IF(AND($D$42="Yes",$D$41>=1),"X1 Thickness (in.)","Minimum Web Thickness (in.)")) -> Minimum Web Thickness (in.) | D43: 1 | K43: Are all webs full height? | N43: Yes
A44: =IF(AND(D42="Yes",$D$41>=2),"X2 Thickness (in.)","") ->  | F44: =IF($D$41>=1,"Web Location X1 (in.)","") -> Web Location X1 (in.) | I44: 0 | K44: =IF(AND($N$43="No",$D$41>=1),"X1 Height (in.)","") -> 
A45: =IF(AND(D42="Yes",$D$41>=3),"X3 Thickness (in.)","") ->  | F45: =IF($D$41>=2,"Web Location X2 (in.)","") -> Web Location X2 (in.) | I45: 7.3125 | K45: =IF(AND($N$43="No",$D$41>=2),"X2 Height (in.)","") -> 
A46: =IF(AND(D42="Yes",$D$41>=4),"X4 Thickness (in.)","") ->  | F46: =IF($D$41>=3,"Web Location X3 (in.)","") -> Web Location X3 (in.) | I46: 14.625 | K46: =IF(AND($N$43="No",$D$41>=3),"X3 Height (in.)","") -> 
A47: =IF(AND(D42="Yes",$D$41>=5),"X5 Thickness (in.)","") ->  | F47: =IF($D$41>=4,"Web Location X4 (in.)","") ->  | K47: =IF(AND($N$43="No",$D$41>=4),"X4 Height (in.)","") -> 
A48: =IF(Calculations!L5>Calculations!B5,"The sum of web thicknesses is greater than the length of the unit. Enter valid web thicknesses.","") ->  | E48: =IF($D$42="No",$D$43,D47) -> 1 | F48: =IF($D$41>=5,"Web Location X5 (in.)","") ->  | K48: =IF(AND($N$43="No",$D$41>=5),"X5 Height (in.)","") -> 
A49: Step 5: Enter Mortar and Block Details
A50: Mortar Bedding
A51: Block Configuration | D51: Hollow
A53: Step 6: Unit Normalized Web Area and Volume
A54: Calculated Normalized Web Area (in2/ft2) | D54: =Calculations!E14 -> 25.734375
A55: Calculated Unit Volume (ft3/unit) | D55: =Calculations!D123/((12/('Wall Weight Calculator'!$C$9+'Wall Weight Calculator'!$C$13))*(12/('Wall Weight Calculator'!$C$8+'Wall Weight Calculator'!$C$13))) -> 0.2402117694
A56: Calculated Equivalent Thickness (in.) | D56: =Calculations!D124/((12/('Wall Weight Calculator'!$C$9+'Wall Weight Calculator'!$C$13))*(12/('Wall Weight Calculator'!$C$8+'Wall Weight Calculator'!$C$13)))*1728/('Wall Weight Calculator'!C9*'Wall Weight Calculator'!C8) -> 3.484

Sheet Section Properties Calculator
G1: Date: | I1: ='Unit Configuration'!C11 -> 00:00:00
G2: Project Name: | I2: ='Unit Configuration'!C12 -> 0
G3: Project Number: | I3: ='Unit Configuration'!C13 -> 0
G4: Unit Description: | I4: ='Unit Configuration'!C14 -> 0
A6: General Unit Info | D6: Webs | E6: Location | F6: Height | G6: Thickness | H6: ASTM C90 Web and Face shell Requirements
A7: Specified Unit Width (in.) | C7: ='Unit Configuration'!F31 -> 7.625 | D7: =IF('Unit Configuration'!F44="","","X1 (in.)") -> X1 (in.) | E7: =IF(D7="","",'Unit Configuration'!I44) -> 0 | F7: =IF(D7="","",Calculations!H3) -> 7.625 | G7: =IF(D7="","",Calculations!F3) -> 1 | H7: Normalized Web Area? | J7: =IF(G12>=6.5,"Complies with ASTM C90","Does not comply") -> Complies with ASTM C90
A8: Specified Unit Height (in.) | C8: ='Unit Configuration'!F32 -> 7.625 | D8: =IF('Unit Configuration'!F45="","","X2 (in.)") -> X2 (in.) | E8: =IF(D8="","",'Unit Configuration'!I45) -> 7.3125 | F8: =IF(D8="","",Calculations!H4) -> 7.625 | G8: =IF(D8="","",Calculations!F4) -> 1 | H8: Faceshell Thicknesses? | J8: =IF(AND(Calculations!G13,Calculations!G14),"Complies with ASTM C90","Does not comply") -> Complies with ASTM C90
A9: Specified Unit Length (in.) | C9: ='Unit Configuration'!F33 -> 15.625 | D9: =IF('Unit Configuration'!F46="","","X3 (in.)") -> X3 (in.) | E9: =IF(D9="","",'Unit Configuration'!I46) -> 14.625 | F9: =IF(D9="","",Calculations!H5) -> 7.625 | G9: =IF(D9="","",Calculations!F5) -> 1 | H9: Web Thicknesses? | J9: =IF(MIN(G7:G11)>=0.75,"Complies with ASTM C90","Does not comply") -> Complies with ASTM C90
A10: =IF('Unit Configuration'!D36="NO","Faceshell thicknesses (in.)","First faceshell thickness (in.)") -> Faceshell thicknesses (in.) | C10: ='Unit Configuration'!D37 -> 1.25 | D10: =IF('Unit Configuration'!F47="","","X4 (in.)") ->  | E10: =IF(D10="","",'Unit Configuration'!I47) ->  | F10: =IF(D10="","",Calculations!H6) ->  | G10: =IF(D10="","",Calculations!F6) ->  | H10: =IF(AND('Unit Configuration'!N43="Yes",Calculations!G50=TRUE,'Unit Configuration'!D31>=6),"","The entered configuration cannot be partially grouted or have a full mortar bed. These values have been eliminated from consideration and will show as blank spaces on the table") -> The entered configuration cannot be partially grouted or have a full mortar bed. These values have been eliminated from consideration and will show as blank spaces on the table
A11: =IF('Unit Configuration'!D36="YES","Second faceshell thickness (in.)","") ->  | C11: =IF(COUNTBLANK('Section Properties Calculator'!A11),"",'Unit Configuration'!D38) ->  | D11: =IF('Unit Configuration'!F48="","","X5 (in.)") ->  | E11: =IF(D11="","",'Unit Configuration'!I48) ->  | F11: =IF(D11="","",Calculations!H7) ->  | G11: =IF(D11="","",Calculations!F7) -> 
A12: Mortar Info | D12: Normalized Web Area (in2/ft2) | G12: ='Unit Configuration'!D54 -> 25.734375
A13: Mortar Thickness (in.) | C13: ='Unit Configuration'!D30 -> 0.375 | D13: Direction of Span | G13: Vertical
B15: =IF(G13="Vertical","Grout Spacing (in.)","Bond Beam Spacing (in.)") -> Grout Spacing (in.) | C15: Mortar Bedding | D15: =IF(G13="Vertical","Horizontal Net Cross-Sectional Properties","Vertical Net Cross-Sectional Properties") -> Horizontal Net Cross-Sectional Properties | G15: =IF(G13="Vertical","Horizontal Average Cross-Sectional Properties","Vertical Average Cross-Sectional Properties") -> Horizontal Average Cross-Sectional Properties
D17: An (in2/ft) | E17: In (in4/ft) | F17: Sn (in3/ft) | G17: Aavg (in2/ft) | H17: Iavg (in4/ft) | I17: Savg (in3/ft) | J17: ravg (in)
B18: =IF($G$13="Vertical",Calculations!B20,Calculations!B96) -> None | C18: =IF($G$13="Vertical",Calculations!C20,Calculations!C96) -> Face shell | D18: =IF($G$13="Vertical",Calculations!D20,Calculations!D96) -> 30 | E18: =IF($G$13="Vertical",Calculations!E20,Calculations!E96) -> 308.7109375 | F18: =IF($G$13="Vertical",Calculations!F20,Calculations!F96) -> 80.97336066 | G18: =IF($G$13="Vertical",Calculations!G20,Calculations!G96) -> 41.53125 | H18: =IF($G$13="Vertical",Calculations!H20,Calculations!H96) -> 333.9505615 | I18: =IF($G$13="Vertical",Calculations!I20,Calculations!I96) -> 87.59358991 | J18: =IF($G$13="Vertical",Calculations!J20,Calculations!J96) -> 2.835656283
B19: =IF($G$13="Vertical",Calculations!B21,Calculations!B97) -> None | C19: =IF($G$13="Vertical",Calculations!C21,Calculations!C97) -> Full | D19: =IF($G$13="Vertical",Calculations!D21,Calculations!D97) -> 41.53125 | E19: =IF($G$13="Vertical",Calculations!E21,Calculations!E97) -> 333.9505615 | F19: =IF($G$13="Vertical",Calculations!F21,Calculations!F97) -> 87.59358991 | G19: =IF($G$13="Vertical",Calculations!G21,Calculations!G97) -> 41.53125 | H19: =IF($G$13="Vertical",Calculations!H21,Calculations!H97) -> 333.9505615 | I19: =IF($G$13="Vertical",Calculations!I21,Calculations!I97) -> 87.59358991 | J19: =IF($G$13="Vertical",Calculations!J21,Calculations!J97) -> 2.835656283
B20: =IF($G$13="Vertical",Calculations!B22,Calculations!B98) -> None | C20: =IF($G$13="Vertical",Calculations!C22,Calculations!C98) -> Full | D20: =IF($G$13="Vertical",Calculations!D22,Calculations!D98) -> 91.5 | E20: =IF($G$13="Vertical",Calculations!E22,Calculations!E98) -> 443.3222656 | F20: =IF($G$13="Vertical",Calculations!F22,Calculations!F98) -> 116.28125 | G20: =IF($G$13="Vertical",Calculations!G22,Calculations!G98) -> 91.5 | H20: =IF($G$13="Vertical",Calculations!H22,Calculations!H98) -> 443.3222656 | I20: =IF($G$13="Vertical",Calculations!I22,Calculations!I98) -> 116.28125 | J20: =IF($G$13="Vertical",Calculations!J22,Calculations!J98) -> 2.201147901
B21: =IF($H$10="",IF($G$13="Vertical",Calculations!B23,Calculations!B99),"") ->  | C21: =IF($H$10="",IF($G$13="Vertical",Calculations!C23,Calculations!C99),"") ->  | D21: =IF($H$10="",IF($G$13="Vertical",Calculations!D23,Calculations!D99),"") ->  | E21: =IF($H$10="",IF($G$13="Vertical",Calculations!E23,Calculations!E99),"") ->  | F21: =IF($H$10="",IF($G$13="Vertical",Calculations!F23,Calculations!F99),"") ->  | G21: =IF($H$10="",IF($G$13="Vertical",Calculations!G23,Calculations!G99),"") ->  | H21: =IF($H$10="",IF($G$13="Vertical",Calculations!H23,Calculations!H99),"") ->  | I21: =IF($H$10="",IF($G$13="Vertical",Calculations!I23,Calculations!I99),"") ->  | J21: =IF($H$10="",IF($G$13="Vertical",Calculations!J23,Calculations!J99),"") -> 
B22: =IF($H$10="",IF($G$13="Vertical",Calculations!B24,Calculations!B100),"") ->  | C22: =IF($H$10="",IF($G$13="Vertical",Calculations!C24,Calculations!C100),"") ->  | D22: =IF($H$10="",IF($G$13="Vertical",Calculations!D24,Calculations!D100),"") ->  | E22: =IF($H$10="",IF($G$13="Vertical",Calculations!E24,Calculations!E100),"") ->  | F22: =IF($H$10="",IF($G$13="Vertical",Calculations!F24,Calculations!F100),"") ->  | G22: =IF($H$10="",IF($G$13="Vertical",Calculations!G24,Calculations!G100),"") ->  | H22: =IF($H$10="",IF($G$13="Vertical",Calculations!H24,Calculations!H100),"") ->  | I22: =IF($H$10="",IF($G$13="Vertical",Calculations!I24,Calculations!I100),"") ->  | J22: =IF($H$10="",IF($G$13="Vertical",Calculations!J24,Calculations!J100),"") -> 
B23: =IF($H$10="",IF($G$13="Vertical",Calculations!B25,Calculations!B101),"") ->  | C23: =IF($H$10="",IF($G$13="Vertical",Calculations!C25,Calculations!C101),"") ->  | D23: =IF($H$10="",IF($G$13="Vertical",Calculations!D25,Calculations!D101),"") ->  | E23: =IF($H$10="",IF($G$13="Vertical",Calculations!E25,Calculations!E101),"") ->  | F23: =IF($H$10="",IF($G$13="Vertical",Calculations!F25,Calculations!F101),"") ->  | G23: =IF($H$10="",IF($G$13="Vertical",Calculations!G25,Calculations!G101),"") ->  | H23: =IF($H$10="",IF($G$13="Vertical",Calculations!H25,Calculations!H101),"") ->  | I23: =IF($H$10="",IF($G$13="Vertical",Calculations!I25,Calculations!I101),"") ->  | J23: =IF($H$10="",IF($G$13="Vertical",Calculations!J25,Calculations!J101),"") -> 
B24: =IF($H$10="",IF($G$13="Vertical",Calculations!B26,Calculations!B102),"") ->  | C24: =IF($H$10="",IF($G$13="Vertical",Calculations!C26,Calculations!C102),"") ->  | D24: =IF($H$10="",IF($G$13="Vertical",Calculations!D26,Calculations!D102),"") ->  | E24: =IF($H$10="",IF($G$13="Vertical",Calculations!E26,Calculations!E102),"") ->  | F24: =IF($H$10="",IF($G$13="Vertical",Calculations!F26,Calculations!F102),"") ->  | G24: =IF($H$10="",IF($G$13="Vertical",Calculations!G26,Calculations!G102),"") ->  | H24: =IF($H$10="",IF($G$13="Vertical",Calculations!H26,Calculations!H102),"") ->  | I24: =IF($H$10="",IF($G$13="Vertical",Calculations!I26,Calculations!I102),"") ->  | J24: =IF($H$10="",IF($G$13="Vertical",Calculations!J26,Calculations!J102),"") -> 
B25: =IF($H$10="",IF($G$13="Vertical",Calculations!B27,Calculations!B103),"") ->  | C25: =IF($H$10="",IF($G$13="Vertical",Calculations!C27,Calculations!C103),"") ->  | D25: =IF($H$10="",IF($G$13="Vertical",Calculations!D27,Calculations!D103),"") ->  | E25: =IF($H$10="",IF($G$13="Vertical",Calculations!E27,Calculations!E103),"") ->  | F25: =IF($H$10="",IF($G$13="Vertical",Calculations!F27,Calculations!F103),"") ->  | G25: =IF($H$10="",IF($G$13="Vertical",Calculations!G27,Calculations!G103),"") ->  | H25: =IF($H$10="",IF($G$13="Vertical",Calculations!H27,Calculations!H103),"") ->  | I25: =IF($H$10="",IF($G$13="Vertical",Calculations!I27,Calculations!I103),"") ->  | J25: =IF($H$10="",IF($G$13="Vertical",Calculations!J27,Calculations!J103),"") -> 
B26: =IF($H$10="",IF($G$13="Vertical",Calculations!B28,Calculations!B104),"") ->  | C26: =IF($H$10="",IF($G$13="Vertical",Calculations!C28,Calculations!C104),"") ->  | D26: =IF($H$10="",IF($G$13="Vertical",Calculations!D28,Calculations!D104),"") ->  | E26: =IF($H$10="",IF($G$13="Vertical",Calculations!E28,Calculations!E104),"") ->  | F26: =IF($H$10="",IF($G$13="Vertical",Calculations!F28,Calculations!F104),"") ->  | G26: =IF($H$10="",IF($G$13="Vertical",Calculations!G28,Calculations!G104),"") ->  | H26: =IF($H$10="",IF($G$13="Vertical",Calculations!H28,Calculations!H104),"") ->  | I26: =IF($H$10="",IF($G$13="Vertical",Calculations!I28,Calculations!I104),"") ->  | J26: =IF($H$10="",IF($G$13="Vertical",Calculations!J28,Calculations!J104),"") -> 
B27: =IF($H$10="",IF($G$13="Vertical",Calculations!B29,Calculations!B105),"") ->  | C27: =IF($H$10="",IF($G$13="Vertical",Calculations!C29,Calculations!C105),"") ->  | D27: =IF($H$10="",IF($G$13="Vertical",Calculations!D29,Calculations!D105),"") ->  | E27: =IF($H$10="",IF($G$13="Vertical",Calculations!E29,Calculations!E105),"") ->  | F27: =IF($H$10="",IF($G$13="Vertical",Calculations!F29,Calculations!F105),"") ->  | G27: =IF($H$10="",IF($G$13="Vertical",Calculations!G29,Calculations!G105),"") ->  | H27: =IF($H$10="",IF($G$13="Vertical",Calculations!H29,Calculations!H105),"") ->  | I27: =IF($H$10="",IF($G$13="Vertical",Calculations!I29,Calculations!I105),"") ->  | J27: =IF($H$10="",IF($G$13="Vertical",Calculations!J29,Calculations!J105),"") -> 
B28: =IF($H$10="",IF($G$13="Vertical",Calculations!B30,Calculations!B106),"") ->  | C28: =IF($H$10="",IF($G$13="Vertical",Calculations!C30,Calculations!C106),"") ->  | D28: =IF($H$10="",IF($G$13="Vertical",Calculations!D30,Calculations!D106),"") ->  | E28: =IF($H$10="",IF($G$13="Vertical",Calculations!E30,Calculations!E106),"") ->  | F28: =IF($H$10="",IF($G$13="Vertical",Calculations!F30,Calculations!F106),"") ->  | G28: =IF($H$10="",IF($G$13="Vertical",Calculations!G30,Calculations!G106),"") ->  | H28: =IF($H$10="",IF($G$13="Vertical",Calculations!H30,Calculations!H106),"") ->  | I28: =IF($H$10="",IF($G$13="Vertical",Calculations!I30,Calculations!I106),"") ->  | J28: =IF($H$10="",IF($G$13="Vertical",Calculations!J30,Calculations!J106),"") -> 
B29: =IF($H$10="",IF($G$13="Vertical",Calculations!B31,Calculations!B107),"") ->  | C29: =IF($H$10="",IF($G$13="Vertical",Calculations!C31,Calculations!C107),"") ->  | D29: =IF($H$10="",IF($G$13="Vertical",Calculations!D31,Calculations!D107),"") ->  | E29: =IF($H$10="",IF($G$13="Vertical",Calculations!E31,Calculations!E107),"") ->  | F29: =IF($H$10="",IF($G$13="Vertical",Calculations!F31,Calculations!F107),"") ->  | G29: =IF($H$10="",IF($G$13="Vertical",Calculations!G31,Calculations!G107),"") ->  | H29: =IF($H$10="",IF($G$13="Vertical",Calculations!H31,Calculations!H107),"") ->  | I29: =IF($H$10="",IF($G$13="Vertical",Calculations!I31,Calculations!I107),"") ->  | J29: =IF($H$10="",IF($G$13="Vertical",Calculations!J31,Calculations!J107),"") -> 
B30: =IF($H$10="",IF($G$13="Vertical",Calculations!B32,Calculations!B108),"") ->  | C30: =IF($H$10="",IF($G$13="Vertical",Calculations!C32,Calculations!C108),"") ->  | D30: =IF($H$10="",IF($G$13="Vertical",Calculations!D32,Calculations!D108),"") ->  | E30: =IF($H$10="",IF($G$13="Vertical",Calculations!E32,Calculations!E108),"") ->  | F30: =IF($H$10="",IF($G$13="Vertical",Calculations!F32,Calculations!F108),"") ->  | G30: =IF($H$10="",IF($G$13="Vertical",Calculations!G32,Calculations!G108),"") ->  | H30: =IF($H$10="",IF($G$13="Vertical",Calculations!H32,Calculations!H108),"") ->  | I30: =IF($H$10="",IF($G$13="Vertical",Calculations!I32,Calculations!I108),"") ->  | J30: =IF($H$10="",IF($G$13="Vertical",Calculations!J32,Calculations!J108),"") -> 
B31: =IF($H$10="",IF($G$13="Vertical",Calculations!B33,Calculations!B109),"") ->  | C31: =IF($H$10="",IF($G$13="Vertical",Calculations!C33,Calculations!C109),"") ->  | D31: =IF($H$10="",IF($G$13="Vertical",Calculations!D33,Calculations!D109),"") ->  | E31: =IF($H$10="",IF($G$13="Vertical",Calculations!E33,Calculations!E109),"") ->  | F31: =IF($H$10="",IF($G$13="Vertical",Calculations!F33,Calculations!F109),"") ->  | G31: =IF($H$10="",IF($G$13="Vertical",Calculations!G33,Calculations!G109),"") ->  | H31: =IF($H$10="",IF($G$13="Vertical",Calculations!H33,Calculations!H109),"") ->  | I31: =IF($H$10="",IF($G$13="Vertical",Calculations!I33,Calculations!I109),"") ->  | J31: =IF($H$10="",IF($G$13="Vertical",Calculations!J33,Calculations!J109),"") -> 
B32: =IF($H$10="",IF($G$13="Vertical",Calculations!B34,Calculations!B110),"") ->  | C32: =IF($H$10="",IF($G$13="Vertical",Calculations!C34,Calculations!C110),"") ->  | D32: =IF($H$10="",IF($G$13="Vertical",Calculations!D34,Calculations!D110),"") ->  | E32: =IF($H$10="",IF($G$13="Vertical",Calculations!E34,Calculations!E110),"") ->  | F32: =IF($H$10="",IF($G$13="Vertical",Calculations!F34,Calculations!F110),"") ->  | G32: =IF($H$10="",IF($G$13="Vertical",Calculations!G34,Calculations!G110),"") ->  | H32: =IF($H$10="",IF($G$13="Vertical",Calculations!H34,Calculations!H110),"") ->  | I32: =IF($H$10="",IF($G$13="Vertical",Calculations!I34,Calculations!I110),"") ->  | J32: =IF($H$10="",IF($G$13="Vertical",Calculations!J34,Calculations!J110),"") -> 
B33: =IF($H$10="",IF($G$13="Vertical",Calculations!B35,Calculations!B111),"") ->  | C33: =IF($H$10="",IF($G$13="Vertical",Calculations!C35,Calculations!C111),"") ->  | D33: =IF($H$10="",IF($G$13="Vertical",Calculations!D35,Calculations!D111),"") ->  | E33: =IF($H$10="",IF($G$13="Vertical",Calculations!E35,Calculations!E111),"") ->  | F33: =IF($H$10="",IF($G$13="Vertical",Calculations!F35,Calculations!F111),"") ->  | G33: =IF($H$10="",IF($G$13="Vertical",Calculations!G35,Calculations!G111),"") ->  | H33: =IF($H$10="",IF($G$13="Vertical",Calculations!H35,Calculations!H111),"") ->  | I33: =IF($H$10="",IF($G$13="Vertical",Calculations!I35,Calculations!I111),"") ->  | J33: =IF($H$10="",IF($G$13="Vertical",Calculations!J35,Calculations!J111),"") -> 
B34: =IF($H$10="",IF($G$13="Vertical",Calculations!B36,Calculations!B112),"") ->  | C34: =IF($H$10="",IF($G$13="Vertical",Calculations!C36,Calculations!C112),"") ->  | D34: =IF($H$10="",IF($G$13="Vertical",Calculations!D36,Calculations!D112),"") ->  | E34: =IF($H$10="",IF($G$13="Vertical",Calculations!E36,Calculations!E112),"") ->  | F34: =IF($H$10="",IF($G$13="Vertical",Calculations!F36,Calculations!F112),"") ->  | G34: =IF($H$10="",IF($G$13="Vertical",Calculations!G36,Calculations!G112),"") ->  | H34: =IF($H$10="",IF($G$13="Vertical",Calculations!H36,Calculations!H112),"") ->  | I34: =IF($H$10="",IF($G$13="Vertical",Calculations!I36,Calculations!I112),"") ->  | J34: =IF($H$10="",IF($G$13="Vertical",Calculations!J36,Calculations!J112),"") -> 
B35: =IF($H$10="",IF($G$13="Vertical",Calculations!B37,Calculations!B113),"") ->  | C35: =IF($H$10="",IF($G$13="Vertical",Calculations!C37,Calculations!C113),"") ->  | D35: =IF($H$10="",IF($G$13="Vertical",Calculations!D37,Calculations!D113),"") ->  | E35: =IF($H$10="",IF($G$13="Vertical",Calculations!E37,Calculations!E113),"") ->  | F35: =IF($H$10="",IF($G$13="Vertical",Calculations!F37,Calculations!F113),"") ->  | G35: =IF($H$10="",IF($G$13="Vertical",Calculations!G37,Calculations!G113),"") ->  | H35: =IF($H$10="",IF($G$13="Vertical",Calculations!H37,Calculations!H113),"") ->  | I35: =IF($H$10="",IF($G$13="Vertical",Calculations!I37,Calculations!I113),"") ->  | J35: =IF($H$10="",IF($G$13="Vertical",Calculations!J37,Calculations!J113),"") -> 
B36: **The ability to grout the unit must be conferred with manufacturer and/or contractor.

Sheet Calculations (hidden)
A2: Known Information
A3: Unit Width = | B3: ='Unit Configuration'!F31 -> 7.625 | C3: tfs1 = | D3: ='Unit Configuration'!D37 -> 1.25 | E3: tweb1 = | F3: ='Unit Configuration'!D43 -> 1 | G3: hweb1 = | H3: =IF(AND('Unit Configuration'!$N$43="yes",'Unit Configuration'!$D$41>=1),'Unit Configuration'!$F$32,'Unit Configuration'!N44) -> 7.625 | I3: Aweb1 | J3: =F3*H3 -> 7.625 | K3: Total Specified Face Shell Area | L3: =(D3+D4)*B5 -> 39.0625
A4: Unit Height = | B4: ='Unit Configuration'!F32 -> 7.625 | C4: tfs2 = | D4: =IF('Unit Configuration'!D36="No",'Unit Configuration'!D37,'Unit Configuration'!D38) -> 1.25 | E4: tweb2 = | F4: =IF(AND($L$8>=2,'Unit Configuration'!$D$42="No"),'Unit Configuration'!$D$43,'Unit Configuration'!$D44) -> 1 | G4: hweb2 = | H4: =IF(AND('Unit Configuration'!$N$43="yes",'Unit Configuration'!$D$41>=2),'Unit Configuration'!$F$32,'Unit Configuration'!N45) -> 7.625 | I4: Aweb2 | J4: =F4*H4 -> 7.625 | K4: Total Nominal Face Shell Area | L4: =(D3+D4)*B8 -> 40
A5: Unit Length = | B5: ='Unit Configuration'!F33 -> 15.625 | C5: tmj = | D5: ='Unit Configuration'!D30 -> 0.375 | E5: tweb3 = | F5: =IF(AND($L$8>=3,'Unit Configuration'!$D$42="No"),'Unit Configuration'!$D$43,'Unit Configuration'!$D45) -> 1 | G5: hweb3 = | H5: =IF(AND('Unit Configuration'!$N$43="yes",'Unit Configuration'!$D$41>=3),'Unit Configuration'!$F$32,'Unit Configuration'!N46) -> 7.625 | I5: Aweb3 | J5: =F5*H5 -> 7.625 | K5: Net Web Thickness | L5: =SUM(F3:F7) -> 3
A6: Unit Nominal Width = | B6: ='Unit Configuration'!D31 -> 8 | E6: tweb4 = | F6: =IF(AND($L$8>=4,'Unit Configuration'!$D$42="No"),'Unit Configuration'!$D$43,'Unit Configuration'!$D46) -> 0 | G6: hweb4 = | H6: =IF(AND('Unit Configuration'!$N$43="yes",'Unit Configuration'!$D$41>=4),'Unit Configuration'!$F$32,'Unit Configuration'!N47) -> 0 | I6: Aweb4 | J6: =F6*H6 -> 0 | K6: Cell Width (in block) | L6: =B3-SUM(D3:D4) -> 5.125
A7: Unit Nominal Height = | B7: ='Unit Configuration'!D32 -> 8 | E7: tweb5 = | F7: =IF(AND($L$8>4,'Unit Configuration'!$D$42="No"),'Unit Configuration'!$D$43,'Unit Configuration'!$D47) -> 0 | G7: hweb5 = | H7: =IF(AND('Unit Configuration'!$N$43="yes",'Unit Configuration'!$D$41>=5),'Unit Configuration'!$F$32,'Unit Configuration'!N48) -> 0 | I7: Aweb5 | J7: =F7*H7 -> 0 | K7: Total Web area | L7: =L6*L5 -> 15.375
A8: Unit Nominal Length = | B8: ='Unit Configuration'!D33 -> 16 | K8: Number of Webs | L8: ='Unit Configuration'!D41 -> 3
D10: Design Checks
D11: Normalized Web Area Check | F11: Faceshell Check | H11: Normalizations
D12: Total Web Area (in2) | E12: =SUM(J3:J7) -> 22.875 | F12: FS Flag Based on Width of Unit | G12: =IF('Unit Configuration'!D31<=4,1,IF(AND('Unit Configuration'!D31>4,'Unit Configuration'!D31<8),2,IF('Unit Configuration'!D31>=8,3,))) -> 3 | H12: Length Normalization | I12: =12/(B5+D5) -> 0.75
D13: Total Web Area/Nominal FS Area | E13: =E12/('Unit Configuration'!D33*'Unit Configuration'!D32) -> 0.1787109375 | F13: FS1 | G13: =IF(AND($G$12=1,D3>=0.75),TRUE,IF(AND($G$12=2,D3>=1),TRUE,IF(AND($G$12=3,D3>=1.25),TRUE,FALSE))) -> TRUE | H13: Height Normalization | I13: =12/B7 -> 1.5
D14: Normalized Web Area (in2/ft2) | E14: =E13*144 -> 25.734375 | F14: FS2 | G14: =IF(AND($G$12=1,D4>=0.75),TRUE,IF(AND($G$12=2,D4>=1),TRUE,IF(AND($G$12=3,D4>=1.25),TRUE,FALSE))) -> TRUE
D15: ASTM C90 Compliant? | E15: =IF(E14>=6.5,TRUE,FALSE) -> TRUE
A17: Concrete Masonry Section Properties for Vertically Grouted Walls
A18: Unit Config | B18: Grout Spacing (in.) | C18: Mortar Bedding | D18: Net Cross-Sectional Properties | G18: Average Cross-Sectional Properties
D19: An (in2/ft) | E19: In (in4/ft) | F19: Sn (in3/ft) | G19: Aavg (in2/ft) | H19: Iavg (in4/ft) | I19: Savg (in3/ft) | J19: ravg (in)
A20: Hollow | B20: None | C20: Face shell | D20: =L4*I12 -> 30 | E20: =(((1/12)*(B5+D5)*(B3^3))-((1/12)*(B5+D5)*(L6^3)))*I12 -> 308.7109375 | F20: =(E20/($B$3/2)) -> 80.97336066 | G20: =SUM(L4,L7)*I12 -> 41.53125 | H20: =(((1/12)*(B5+D5)*(B3^3))-((1/12)*(B5+D5-L5)*(L6^3)))*I12 -> 333.9505615 | I20: =(H20/($B$3/2)) -> 87.59358991 | J20: =(H20/G20)^0.5 -> 2.835656283
A21: Hollow | B21: None | C21: Full | D21: =(L4+L7)*I12 -> 41.53125 | E21: =(((1/12)*(B5+D5)*(B3^3))-((1/12)*(B5+D5-L5)*(L6^3)))*I12 -> 333.9505615 | F21: 87.59358991 | G21: =SUM(L4,L7)*I12 -> 41.53125 | H21: =(((1/12)*(B5+D5)*(B3^3))-((1/12)*(B5+D5-L5)*(L6^3)))*I12 -> 333.9505615 | I21: 87.59358991 | J21: =(H21/G21)^0.5 -> 2.835656283
A22: Solid | B22: None | C22: Full | D22: =B8*B3*I12 -> 91.5 | E22: =(1/12)*(B5+D5)*(B3^3)*I12 -> 443.3222656 | F22: 116.28125 | G22: =D22 -> 91.5 | H22: =E22 -> 443.3222656 | I22: 116.28125 | J22: =(H22/G22)^0.5 -> 2.201147901
A23: Hollow | B23: 8 | C23: Full | D23: =IF(B8/L8=8,D22,(L4+(L6*B5))*I12) -> 90.05859375 | E23: =IF(B8/L8=8,E22,((1/12)*B5*L6^3+1/12*(B5+D5)*D3^3+(B5+D5)*D3*(B3/2-D3/2)^2+1/12*(B5+D5)*D4^3+(B5+D5)*D4*(B3/2-D4/2)^2)*I12) -> 440.1673126 | F23: 115.4537213 | G23: =D23 -> 90.05859375 | H23: =E23 -> 440.1673126 | I23: 115.4537213 | J23: =(H23/G23)^0.5 -> 2.210784003
A24: Hollow | B24: 16 | C24: =IF('Unit Configuration'!$D$50="Face shell","Face shell","Full") -> Full | D24: =IF('Unit Configuration'!$D$50="Face shell",$D$20+$F$47*12/$B24,$D$21+$F$47*12/$B24) -> 41.53125 | E24: =IF('Unit Configuration'!$D$50="Face shell",$E$20+$G$47*(12/$B24),$E$21+$G$47*12/$B24) -> 333.9505615 | F24: 87.59358991 | G24: =$G$20+($I$47*12/B24) -> 65.79492188 | H24: =$H$20+($J$47*(12/B24)) -> 387.0589371 | I24: 101.5236556 | J24: 2.4254502
A25: Hollow | B25: =B24+8 -> 24 | C25: =IF('Unit Configuration'!$D$50="Face shell","Face shell","Full") -> Full | D25: =IF('Unit Configuration'!$D$50="Face shell",$D$20+$F$47*12/$B25,$D$21+$F$47*12/$B25) -> 41.53125 | E25: =IF('Unit Configuration'!$D$50="Face shell",$E$20+$G$47*(12/$B25),$E$21+$G$47*12/$B25) -> 333.9505615 | F25: 87.59358991 | G25: 57.70703125 | H25: 369.3561452 | I25: 96.88030039 | J25: 2.529928796
A26: Hollow | B26: 32 | C26: =IF('Unit Configuration'!$D$50="Face shell","Face shell","Full") -> Full | D26: =IF('Unit Configuration'!$D$50="Face shell",$D$20+$F$47*12/$B26,$D$21+$F$47*12/$B26) -> 41.53125 | E26: =IF('Unit Configuration'!$D$50="Face shell",$E$20+$G$47*(12/$B26),$E$21+$G$47*12/$B26) -> 333.9505615 | F26: 87.59358991 | G26: 53.66308594 | H26: 360.5047493 | I26: 94.55862277 | J26: 2.591896609
A27: Hollow | B27: 40 | C27: =IF('Unit Configuration'!$D$50="Face shell","Face shell","Full") -> Full | D27: =IF('Unit Configuration'!$D$50="Face shell",$D$20+$F$47*12/$B27,$D$21+$F$47*12/$B27) -> 41.53125 | E27: =IF('Unit Configuration'!$D$50="Face shell",$E$20+$G$47*(12/$B27),$E$21+$G$47*12/$B27) -> 333.9505615 | F27: 87.59358991 | G27: 51.23671875 | H27: 355.1939117 | I27: 93.16561619 | J27: 2.632946908
A28: Hollow | B28: 48 | C28: =IF('Unit Configuration'!$D$50="Face shell","Face shell","Full") -> Full | D28: =IF('Unit Configuration'!$D$50="Face shell",$D$20+$F$47*12/$B28,$D$21+$F$47*12/$B28) -> 41.53125 | E28: =IF('Unit Configuration'!$D$50="Face shell",$E$20+$G$47*(12/$B28),$E$21+$G$47*12/$B28) -> 333.9505615 | F28: 87.59358991 | G28: 49.61914062 | H28: 351.6533534 | I28: 92.23694515 | J28: 2.662151472
A29: Hollow | B29: 56 | C29: =IF('Unit Configuration'!$D$50="Face shell","Face shell","Full") -> Full | D29: =IF('Unit Configuration'!$D$50="Face shell",$D$20+$F$47*12/$B29,$D$21+$F$47*12/$B29) -> 41.53125 | E29: =IF('Unit Configuration'!$D$50="Face shell",$E$20+$G$47*(12/$B29),$E$21+$G$47*12/$B29) -> 333.9505615 | F29: 87.59358991 | G29: 48.46372768 | H29: 349.1243831 | I29: 91.57360868 | J29: 2.683994879
A30: Hollow | B30: 64 | C30: =IF('Unit Configuration'!$D$50="Face shell","Face shell","Full") -> Full | D30: =IF('Unit Configuration'!$D$50="Face shell",$D$20+$F$47*12/$B30,$D$21+$F$47*12/$B30) -> 41.53125 | E30: =IF('Unit Configuration'!$D$50="Face shell",$E$20+$G$47*(12/$B30),$E$21+$G$47*12/$B30) -> 333.9505615 | F30: 87.59358991 | G30: 47.59716797 | H30: 347.2276554 | I30: 91.07610634 | J30: 2.700950329
A31: Hollow | B31: 72 | C31: =IF('Unit Configuration'!$D$50="Face shell","Face shell","Full") -> Full | D31: =IF('Unit Configuration'!$D$50="Face shell",$D$20+$F$47*12/$B31,$D$21+$F$47*12/$B31) -> 41.53125 | E31: =IF('Unit Configuration'!$D$50="Face shell",$E$20+$G$47*(12/$B31),$E$21+$G$47*12/$B31) -> 333.9505615 | F31: 87.59358991 | G31: 46.92317708 | H31: 345.7524228 | I31: 90.68916007 | J31: 2.714494157
A32: Hollow | B32: 80 | C32: =IF('Unit Configuration'!$D$50="Face shell","Face shell","Full") -> Full | D32: =IF('Unit Configuration'!$D$50="Face shell",$D$20+$F$47*12/$B32,$D$21+$F$47*12/$B32) -> 41.53125 | E32: =IF('Unit Configuration'!$D$50="Face shell",$E$20+$G$47*(12/$B32),$E$21+$G$47*12/$B32) -> 333.9505615 | F32: 87.59358991 | G32: 46.38398437 | H32: 344.5722366 | I32: 90.37960305 | J32: 2.72556231
A33: Hollow | B33: 88 | C33: =IF('Unit Configuration'!$D$50="Face shell","Face shell","Full") -> Full | D33: =IF('Unit Configuration'!$D$50="Face shell",$D$20+$F$47*12/$B33,$D$21+$F$47*12/$B33) -> 41.53125 | E33: =IF('Unit Configuration'!$D$50="Face shell",$E$20+$G$47*(12/$B33),$E$21+$G$47*12/$B33) -> 333.9505615 | F33: 87.59358991 | G33: 45.9428267 | H33: 343.6066298 | I33: 90.12632913 | J33: 2.734776953
A34: Hollow | B34: 96 | C34: =IF('Unit Configuration'!$D$50="Face shell","Face shell","Full") -> Full | D34: =IF('Unit Configuration'!$D$50="Face shell",$D$20+$F$47*12/$B34,$D$21+$F$47*12/$B34) -> 41.53125 | E34: =IF('Unit Configuration'!$D$50="Face shell",$E$20+$G$47*(12/$B34),$E$21+$G$47*12/$B34) -> 333.9505615 | F34: 87.59358991 | G34: 45.57519531 | H34: 342.8019574 | I34: 89.91526753 | J34: 2.742567829
A35: Hollow | B35: 104 | C35: =IF('Unit Configuration'!$D$50="Face shell","Face shell","Full") -> Full | D35: =IF('Unit Configuration'!$D$50="Face shell",$D$20+$F$47*12/$B35,$D$21+$F$47*12/$B35) -> 41.53125 | E35: =IF('Unit Configuration'!$D$50="Face shell",$E$20+$G$47*(12/$B35),$E$21+$G$47*12/$B35) -> 333.9505615 | F35: 87.59358991 | G35: 45.2641226 | H35: 342.1210808 | I35: 89.73667694 | J35: 2.749241332
A36: Hollow | B36: 112 | C36: =IF('Unit Configuration'!$D$50="Face shell","Face shell","Full") -> Full | D36: =IF('Unit Configuration'!$D$50="Face shell",$D$20+$F$47*12/$B36,$D$21+$F$47*12/$B36) -> 41.53125 | E36: =IF('Unit Configuration'!$D$50="Face shell",$E$20+$G$47*(12/$B36),$E$21+$G$47*12/$B36) -> 333.9505615 | F36: 87.59358991 | G36: 44.99748884 | H36: 341.5374723 | I36: 89.5835993 | J36: 2.755021808
A37: Hollow | B37: 120 | C37: =IF('Unit Configuration'!$D$50="Face shell","Face shell","Full") -> Full | D37: =IF('Unit Configuration'!$D$50="Face shell",$D$20+$F$47*12/$B37,$D$21+$F$47*12/$B37) -> 41.53125 | E37: =IF('Unit Configuration'!$D$50="Face shell",$E$20+$G$47*(12/$B37),$E$21+$G$47*12/$B37) -> 333.9505615 | F37: 87.59358991 | G37: 44.76640625 | H37: 341.0316783 | I37: 89.450932 | J37: 2.7600773
C39: Vertically Grouted Wall - Calculations
D40: Does the Cell Exist? | E40: =IF(AND('Unit Configuration'!D50="Faceshell",D42=TRUE),"Net Cell Length (Incl. Webs Thicknesses with Mortar)","Net Cell Length") -> Net Cell Length | F40: Net Cell Area | G40: Net Cell MOI | H40: Avg Cell Length | I40: Avg Cell Area | J40: Avg Cell MOI
C41: Cell 0 | D41: =IF('Unit Configuration'!I44>0,TRUE,FALSE) -> FALSE | E41: =IF(AND(D41=TRUE,'Unit Configuration'!D50="Face shell"),'Unit Configuration'!I44+Calculations!F3,IF(AND(D41=TRUE,'Unit Configuration'!D50="Full"),'Unit Configuration'!I44,0)) -> 0 | F41: =IF(E41>0,$L$6*E41,0) -> 0 | G41: =IF(E41>0,1/12*E41*($L$6^3),0) -> 0 | H41: =IF(D41=TRUE,'Unit Configuration'!I44,0) -> 0 | I41: =IF(H41>=5,$L$6*H41,0) -> 0 | J41: =IF(H41>=5,1/12*H41*($L$6^3),0) -> 0
C42: Cell 1 | D42: =IF('Unit Configuration'!I45>0,TRUE,FALSE) -> TRUE | E42: =IF(AND('Unit Configuration'!$D$50="Face shell",D42=TRUE),F4+'Unit Configuration'!I45-'Unit Configuration'!I44,IF(AND('Unit Configuration'!$D$50="Full",D42=TRUE),'Unit Configuration'!I45-'Unit Configuration'!I44-F4,0)) -> 0 | F42: =IF(E42>0,($L$6)*E42,0) -> 0 | G42: 0 | H42: =IF(D42=TRUE,'Unit Configuration'!I45-'Unit Configuration'!I44-Calculations!F3,0) -> 6.3125 | I42: 32.3515625 | J42: 70.8111674
C43: Cell 2 | D43: =IF('Unit Configuration'!I46>0,TRUE,FALSE) -> TRUE | E43: =IF(AND('Unit Configuration'!$D$50="Face shell",D43=TRUE),F5+'Unit Configuration'!I46-'Unit Configuration'!I45,IF(AND('Unit Configuration'!$D$50="Full",D43=TRUE),'Unit Configuration'!I46-'Unit Configuration'!I45-F5,0)) -> 0 | F43: =IF(E43>0,($L$6)*E43,0) -> 0 | G43: 0 | H43: =IF(D43=TRUE,'Unit Configuration'!I46-'Unit Configuration'!I45-Calculations!F4,0) -> 6.3125 | I43: 32.3515625 | J43: 70.8111674
C44: Cell 3 | D44: =IF('Unit Configuration'!I47>0,TRUE,FALSE) -> FALSE | E44: =IF(AND('Unit Configuration'!$D$50="Face shell",D44=TRUE),F6+'Unit Configuration'!I47-'Unit Configuration'!I46,IF(AND('Unit Configuration'!$D$50="Full",D44=TRUE),'Unit Configuration'!I47-'Unit Configuration'!I46-F6,0)) -> 0 | F44: =IF(E44>0,($L$6)*E44,0) -> 0 | G44: 0 | H44: =IF(D44=TRUE,'Unit Configuration'!I47-'Unit Configuration'!I46-Calculations!F5,0) -> 0 | I44: 0 | J44: 0
C45: Cell 4 | D45: =IF('Unit Configuration'!I48>0,TRUE,FALSE) -> FALSE | E45: =IF(AND('Unit Configuration'!$D$50="Face shell",D45=TRUE),F7+'Unit Configuration'!I48-'Unit Configuration'!I47,IF(AND('Unit Configuration'!$D$50="Full",D45=TRUE),'Unit Configuration'!I48-'Unit Configuration'!I47-F7,0)) -> 0 | F45: =IF(E45>0,($L$6)*E45,0) -> 0 | G45: 0 | H45: =IF(D45=TRUE,'Unit Configuration'!I48-'Unit Configuration'!I47-Calculations!F6,0) -> 0 | I45: 0 | J45: 0
C46: Cell 5 | D46: =IF(MAX('Unit Configuration'!I44:I48)+LOOKUP(5,1/(F3:F7<>0),F3:F7)<B5,TRUE,FALSE) -> FALSE | E46: =IF(AND('Unit Configuration'!$D$50="Face shell",D46=TRUE),F9+'Unit Configuration'!I49-'Unit Configuration'!I48,IF(AND('Unit Configuration'!$D$50="Full",D46=TRUE),'Unit Configuration'!I49-'Unit Configuration'!I48-F9,0)) -> 0 | F46: =IF(E46>0,($L$6)*E46,0) -> 0 | G46: 0 | H46: =IF(D46=TRUE,B5-MAX('Unit Configuration'!I44:I48)-LOOKUP(5,1/(F3:F7<>0),F3:F7),0) -> 0 | I46: 0 | J46: 0
E47: Average Total: | F47: 0 | G47: 0 | H47: Average Total: | I47: =AVERAGEIF(I41:I46,">00") -> 32.3515625 | J47: =AVERAGEIF(J41:J46,">00") -> 70.8111674
E49: Vertically Grouted Wall - Checks
E50: Can the unit potentially be grouted? | G50: =IF(IFERROR(F47,FALSE),TRUE, FALSE) -> FALSE
A93: Concrete Masonry Section Properties for Horizontally Grouted Walls
A94: Unit Config | B94: BB Spacing (in.) | C94: Mortar Bedding | D94: Net Cross-Sectional Properties1 | G94: Average Cross-Sectional Properties2
D95: An (in2/ft) | E95: In (in4/ft) | F95: Sn (in3/ft) | G95: Aavg (in2/ft) | H95: Iavg (in4/ft) | I95: Savg (in3/ft) | J95: ravg (in)
A96: Hollow | B96: None | C96: Face shell | D96: =(B4+D5)*(D3+D4)*12/(B4+D5) -> 30 | E96: =(((1/12)*(B4+D5)*(B3^3))-((1/12)*(B4+D5)*(L6^3)))*I13 -> 308.7109375 | F96: =(E96/($B$3/2)) -> 80.97336066 | G96: =($D98*($L$5/($B$5+$D$5))+($D96*(($B$5+$D$5-$L$5)/($B$5+$D$5))-((($B$3-(SUM($D$3:$D$4)))*$D5)*$L$8)*($L$5/($B$5+$D$5)))) -> 40.45019531 | H96: =(E96*((B5+D5-L5)/(D5+B5)))+((E98)*(B4/8*L5)/(B5+D5)) -> 330.0541744 | I96: =(H96/($B$3/2)) -> 86.57158673 | J96: =(H96/G96)^0.5 -> 2.856487339
A97: Hollow | B97: None | C97: Full | D97: =(B4+D5)*(D3+D4)*12/(B4+D5) -> 30 | E97: =(((1/12)*(B4+D5)*(B3^3))-((1/12)*(B4+D5)*(L6^3)))*I13 -> 308.7109375 | F97: =(E97/($B$3/2)) -> 80.97336066 | G97: =($D98*($L$5/(D5+$B$5)))+($D97*(($B$5+D5-$L$5)/($B$5+D5))) -> 41.53125 | H97: =(E97*((B5+D5-L5)/(D5+B5)))+((E98*(L5/(B5+D5)))) -> 333.9505615 | I97: =(H97/($B$3/2)) -> 87.59358991 | J97: =(H97/G97)^0.5 -> 2.835656283
A98: Solid | B98: None | C98: Full | D98: =B3*(B4+D5)*12/(D5+B4) -> 91.5 | E98: =1/12*(B4+D5)*B3^3*I13 -> 443.3222656 | F98: 116.28125 | G98: =D98 -> 91.5 | H98: =E98 -> 443.3222656 | I98: 116.28125 | J98: =(H98/G98)^0.5 -> 2.201147901
A99: Hollow | B99: 8 | C99: Full | D99: =B3*(B4+D5)*12/(D5+B4) -> 91.5 | E99: =E22 -> 443.3222656 | F99: 116.28125 | G99: =D99 -> 91.5 | H99: =E99 -> 443.3222656 | I99: =F99 -> 116.28125 | J99: 2.201147901
A100: Hollow | B100: ='Unit Configuration'!D32*2 -> 16 | C100: =IF('Unit Configuration'!$D$50="Face shell","Face shell","Full") -> Full | D100: =$D$96+($F$117*(12/B100)) -> 60.75 | E100: =$E$96+($F$118*(12/B100)) -> 376.0166016 | F100: 98.62730533 | G100: =$G$96+($F$117*12/B100) -> 71.20019531 | H100: =$H$96+($F$118*12/B100) -> 397.3598385 | I100: 104.2255314 | J100: 2.362388897
A101: Hollow | B101: =B100+'Unit Configuration'!$D$32 -> 24 | C101: =IF('Unit Configuration'!$D$50="Face shell","Face shell","Full") -> Full | D101: =$D$96+($F$117*(12/B101)) -> 50.5 | E101: =$E$96+($F$118*(12/B101)) -> 353.5813802 | F101: 92.7426571 | G101: 60.95019531 | H101: 374.9246171 | I101: 98.34088318 | J101: 2.480187004
A102: Hollow | B102: =B101+'Unit Configuration'!$D$32 -> 32 | C102: =IF('Unit Configuration'!$D$50="Face shell","Face shell","Full") -> Full | D102: 45.375 | E102: 342.3637695 | F102: 89.80033299 | G102: 55.82519531 | H102: 363.7070065 | I102: 95.39855907 | J102: 2.552470363
A103: Hollow | B103: =B102+'Unit Configuration'!$D$32 -> 40 | C103: =IF('Unit Configuration'!$D$50="Face shell","Face shell","Full") -> Full | D103: 42.3 | E103: 335.6332031 | F103: 88.03493852 | G103: 52.75019531 | H103: 356.97644 | I103: 93.6331646 | J103: 2.601403625
A104: Hollow | B104: =B103+'Unit Configuration'!$D$32 -> 48 | C104: =IF('Unit Configuration'!$D$50="Face shell","Face shell","Full") -> Full | D104: 40.25 | E104: 331.1461589 | F104: 86.85800888 | G104: 50.70019531 | H104: 352.4893958 | I104: 92.45623496 | J104: 2.636745491
A105: Hollow | B105: =B104+'Unit Configuration'!$D$32 -> 56 | C105: =IF('Unit Configuration'!$D$50="Face shell","Face shell","Full") -> Full | D105: 38.78571429 | E105: 327.9411272 | F105: 86.01734485 | G105: 49.2359096 | H105: 349.2843642 | I105: 91.61557093 | J105: 2.663474784
A106: Hollow | B106: =B105+'Unit Configuration'!$D$32 -> 64 | C106: =IF('Unit Configuration'!$D$50="Face shell","Face shell","Full") -> Full | D106: 37.6875 | E106: 325.5373535 | F106: 85.38684682 | G106: 48.13769531 | H106: 346.8805904 | I106: 90.9850729 | J106: 2.684400759
A107: Hollow | B107: =B106+'Unit Configuration'!$D$32 -> 72 | C107: =IF('Unit Configuration'!$D$50="Face shell","Face shell","Full") -> Full | D107: 36.83333333 | E107: 323.6677517 | F107: 84.89645947 | G107: 47.28352865 | H107: 345.0109887 | I107: 90.49468555 | J107: 2.70122975
A108: Hollow | B108: =B107+'Unit Configuration'!$D$32 -> 80 | C108: =IF('Unit Configuration'!$D$50="Face shell","Face shell","Full") -> Full | D108: 36.15 | E108: 322.1720703 | F108: 84.50414959 | G108: 46.60019531 | H108: 343.5153072 | I108: 90.10237567 | J108: 2.715058419
A109: Hollow | B109: =B108+'Unit Configuration'!$D$32 -> 88 | C109: =IF('Unit Configuration'!$D$50="Face shell","Face shell","Full") -> Full | D109: 35.59090909 | E109: 320.948331 | F109: 84.18316878 | G109: 46.0411044 | H109: 342.2915679 | I109: 89.78139486 | J109: 2.72662388
A110: Hollow | B110: =B109+'Unit Configuration'!$D$32 -> 96 | C110: =IF('Unit Configuration'!$D$50="Face shell","Face shell","Full") -> Full | D110: 35.125 | E110: 319.9285482 | F110: 83.91568477 | G110: 45.57519531 | H110: 341.2717851 | I110: 89.51391085 | J110: 2.736439954
A111: Hollow | B111: =B110+'Unit Configuration'!$D$32 -> 104 | C111: =IF('Unit Configuration'!$D$50="Face shell","Face shell","Full") -> Full | D111: 34.73076923 | E111: 319.065655 | F111: 83.68935214 | G111: 45.18096454 | H111: 340.408892 | I111: 89.28757822 | J111: 2.744875804
A112: Hollow | B112: =B111+'Unit Configuration'!$D$32 -> 112 | C112: =IF('Unit Configuration'!$D$50="Face shell","Face shell","Full") -> Full | D112: 34.39285714 | E112: 318.3260324 | F112: 83.49535275 | G112: 44.84305246 | H112: 339.6692693 | I112: 89.09357883 | J112: 2.752203513
A113: Hollow | B113: =B112+'Unit Configuration'!$D$32 -> 120 | C113: =IF('Unit Configuration'!$D$50="Face shell","Face shell","Full") -> Full | D113: 34.1 | E113: 317.685026 | F113: 83.32721995 | G113: 44.55019531 | H113: 339.028263 | I113: 88.92544602 | J113: 2.758628039
E115: Horizontally Grouted Wall - Calculations
E116: Cell height | F116: =B7 -> 8
E117: Cell Area | F117: =F116*L6 -> 41
E118: Net cell MOI | F118: =(1/12)*(B4+D5)*(L6^3) -> 89.74088542
A120: Wall Weight Calculator - Reference Table
A121: Unit Configuration | B121: Grout Spacing (in.) | C121: Mortar Bedding | D121: Block Vol. (ft3/ft2) | E121: Mortar Wt. (lb/ft2) | F121: Grout Wt. (lb/ft2) | G121: Grout % | H121: Corrected Grout Wt. (lb/ft2) | I121: Weight of Wall (psf) for CMU densities (pcf) of:
I122: 85 | J122: 95 | K122: 105 | L122: 115 | M122: 125 | N122: 135 | O122: 145
A123: Hollow | B123: No Grout | C123: Face shell | D123: =((('Wall Weight Calculator'!$C$9*'Wall Weight Calculator'!$C$10+'Wall Weight Calculator'!$C$9*'Wall Weight Calculator'!$C$11)*'Wall Weight Calculator'!$C$8+'Wall Weight Calculator'!$G$7*('Wall Weight Calculator'!$C$7-('Wall Weight Calculator'!$C$10+'Wall Weight Calculator'!$C$11))*'Wall Weight Calculator'!$F$7+'Wall Weight Calculator'!$G$8*('Wall Weight Calculator'!$C$7-('Wall Weight Calculator'!$C$10+'Wall Weight Calculator'!$C$11))*'Wall Weight Calculator'!$F$8+'Wall Weight Calculator'!$G$9*('Wall Weight Calculator'!$C$7-('Wall Weight Calculator'!$C$10+'Wall Weight Calculator'!$C$11))*'Wall Weight Calculator'!$F$9+'Wall Weight Calculator'!$G$10*('Wall Weight Calculator'!$C$7-('Wall Weight Calculator'!$C$10+'Wall Weight Calculator'!$C$11))*'Wall Weight Calculator'!$F$10+'Wall Weight Calculator'!$G$11*('Wall Weight Calculator'!$C$7-('Wall Weight Calculator'!$C$10+'Wall Weight Calculator'!$C$11))*'Wall Weight Calculator'!$F$11))*(1/1728)*(12/('Wall Weight Calculator'!$C$9+'Wall Weight Calculator'!$C$13))*(12/('Wall Weight Calculator'!$C$8+'Wall Weight Calculator'!$C$13)) -> 0.2702382406 | E123: =('Wall Weight Calculator'!$C$13*('Wall Weight Calculator'!$C$10*('Wall Weight Calculator'!$C$8+'Wall Weight Calculator'!$C$13+'Wall Weight Calculator'!$C$9)+('Wall Weight Calculator'!$C$11*('Wall Weight Calculator'!$C$8+'Wall Weight Calculator'!$C$13+'Wall Weight Calculator'!$C$9))))*(1/1728)*'Wall Weight Calculator'!$E$16*(12/('Wall Weight Calculator'!$C$9+'Wall Weight Calculator'!$C$13))*(12/('Wall Weight Calculator'!$C$8+'Wall Weight Calculator'!$C$13)) -> 1.802444458 | F123: 0 | G123: 0 | H123: =G123*F123 -> 0 | I123: =ROUNDUP(($D123*I$122)+$E123+$H123,0) -> 25 | J123: 28 | K123: 31 | L123: 33 | M123: 36 | N123: 39 | O123: 41
A124: Hollow | B124: No Grout | C124: Full | D124: =((('Wall Weight Calculator'!$C$9*'Wall Weight Calculator'!$C$10+'Wall Weight Calculator'!$C$9*'Wall Weight Calculator'!$C$11)*'Wall Weight Calculator'!$C$8+'Wall Weight Calculator'!$G$7*('Wall Weight Calculator'!$C$7-('Wall Weight Calculator'!$C$10+'Wall Weight Calculator'!$C$11))*'Wall Weight Calculator'!$F$7+'Wall Weight Calculator'!$G$8*('Wall Weight Calculator'!$C$7-('Wall Weight Calculator'!$C$10+'Wall Weight Calculator'!$C$11))*'Wall Weight Calculator'!$F$8+'Wall Weight Calculator'!$G$9*('Wall Weight Calculator'!$C$7-('Wall Weight Calculator'!$C$10+'Wall Weight Calculator'!$C$11))*'Wall Weight Calculator'!$F$9+'Wall Weight Calculator'!$G$10*('Wall Weight Calculator'!$C$7-('Wall Weight Calculator'!$C$10+'Wall Weight Calculator'!$C$11))*'Wall Weight Calculator'!$F$10+'Wall Weight Calculator'!$G$11*('Wall Weight Calculator'!$C$7-('Wall Weight Calculator'!$C$10+'Wall Weight Calculator'!$C$11))*'Wall Weight Calculator'!$F$11))*(1/1728)*(12/('Wall Weight Calculator'!$C$9+'Wall Weight Calculator'!$C$13))*(12/('Wall Weight Calculator'!$C$8+'Wall Weight Calculator'!$C$13)) -> 0.2702382406 | E124: =('Wall Weight Calculator'!$C$13*('Wall Weight Calculator'!$C$10*('Wall Weight Calculator'!$C$8+'Wall Weight Calculator'!$C$13+'Wall Weight Calculator'!$C$9)+('Wall Weight Calculator'!$C$11*('Wall Weight Calculator'!$C$8+'Wall Weight Calculator'!$C$13+'Wall Weight Calculator'!$C$9))+'Wall Weight Calculator'!$G$7*('Wall Weight Calculator'!$C$7-('Wall Weight Calculator'!$C$10+'Wall Weight Calculator'!$C$11))+'Wall Weight Calculator'!$G$8*('Wall Weight Calculator'!$C$7-('Wall Weight Calculator'!$C$10+'Wall Weight Calculator'!$C$11))+'Wall Weight Calculator'!$G$9*('Wall Weight Calculator'!$C$7-('Wall Weight Calculator'!$C$10+'Wall Weight Calculator'!$C$11))+'Wall Weight Calculator'!$G$10*('Wall Weight Calculator'!$C$7-('Wall Weight Calculator'!$C$10+'Wall Weight Calculator'!$C$11))+'Wall Weight Calculator'!$G$11*('Wall Weight Calculator'!$C$7-('Wall Weight Calculator'!$C$10+'Wall Weight Calculator'!$C$11)))*(1/1728)*'Wall Weight Calculator'!$E$16*(12/('Wall Weight Calculator'!$C$9+'Wall Weight Calculator'!$C$13))*(12/('Wall Weight Calculator'!$C$8+'Wall Weight Calculator'!$C$13))) -> 2.271652222 | F124: 0 | G124: 0 | H124: 0 | I124: 26 | J124: 28 | K124: 31 | L124: 34 | M124: 37 | N124: 39 | O124: 42
A125: Solid | B125: No Grout | C125: Full | D125: =('Wall Weight Calculator'!$C$7*'Wall Weight Calculator'!$C$8*'Wall Weight Calculator'!$C$9)*(1/1728)*(12/('Wall Weight Calculator'!$C$8+'Wall Weight Calculator'!$C$13))*(12/('Wall Weight Calculator'!$C$9+'Wall Weight Calculator'!$C$13)) -> 0.5914370219 | E125: =('Wall Weight Calculator'!$C$13*(('Wall Weight Calculator'!$C$9+'Wall Weight Calculator'!$C$13)*('Wall Weight Calculator'!$C$7)+('Wall Weight Calculator'!$C$8)*'Wall Weight Calculator'!$C$7))*(1/1728)*'Wall Weight Calculator'!$E$16*(12/('Wall Weight Calculator'!$C$9+'Wall Weight Calculator'!$C$13))*(12/('Wall Weight Calculator'!$C$8+'Wall Weight Calculator'!$C$13)) -> 5.497455597 | F125: 0 | G125: 0 | H125: 0 | I125: 56 | J125: 62 | K125: 68 | L125: 74 | M125: 80 | N125: 86 | O125: 92
A126: Hollow | B126: 8 | C126: Full | D126: =((('Wall Weight Calculator'!$C$9*'Wall Weight Calculator'!$C$10+'Wall Weight Calculator'!$C$9*'Wall Weight Calculator'!$C$11)*'Wall Weight Calculator'!$C$8+'Wall Weight Calculator'!$G$7*('Wall Weight Calculator'!$C$7-('Wall Weight Calculator'!$C$10+'Wall Weight Calculator'!$C$11))*'Wall Weight Calculator'!$F$7+'Wall Weight Calculator'!$G$8*('Wall Weight Calculator'!$C$7-('Wall Weight Calculator'!$C$10+'Wall Weight Calculator'!$C$11))*'Wall Weight Calculator'!$F$8+'Wall Weight Calculator'!$G$9*('Wall Weight Calculator'!$C$7-('Wall Weight Calculator'!$C$10+'Wall Weight Calculator'!$C$11))*'Wall Weight Calculator'!$F$9+'Wall Weight Calculator'!$G$10*('Wall Weight Calculator'!$C$7-('Wall Weight Calculator'!$C$10+'Wall Weight Calculator'!$C$11))*'Wall Weight Calculator'!$F$10+'Wall Weight Calculator'!$G$11*('Wall Weight Calculator'!$C$7-('Wall Weight Calculator'!$C$10+'Wall Weight Calculator'!$C$11))*'Wall Weight Calculator'!$F$11))*(1/1728)*(12/('Wall Weight Calculator'!$C$9+'Wall Weight Calculator'!$C$13))*(12/('Wall Weight Calculator'!$C$8+'Wall Weight Calculator'!$C$13)) -> 0.2702382406 | E126: =('Wall Weight Calculator'!$C$13*('Wall Weight Calculator'!$C$10*('Wall Weight Calculator'!$C$8+'Wall Weight Calculator'!$C$13+'Wall Weight Calculator'!$C$9)+'Wall Weight Calculator'!$C$11*('Wall Weight Calculator'!$C$8+'Wall Weight Calculator'!$C$13+'Wall Weight Calculator'!$C$9))*('Wall Weight Calculator'!$E$16/1728)*(12/('Wall Weight Calculator'!$C$9+'Wall Weight Calculator'!$C$13))*(12/('Wall Weight Calculator'!$C$8+'Wall Weight Calculator'!$C$13)))+'Wall Weight Calculator'!$C$13*('Wall Weight Calculator'!$G$7*('Wall Weight Calculator'!$C$7-('Wall Weight Calculator'!$C$10+'Wall Weight Calculator'!$C$11))+'Wall Weight Calculator'!$G$8*('Wall Weight Calculator'!$C$7-('Wall Weight Calculator'!$C$10+'Wall Weight Calculator'!$C$11))+'Wall Weight Calculator'!$G$9*('Wall Weight Calculator'!$C$7-('Wall Weight Calculator'!$C$10+'Wall Weight Calculator'!$C$11))+'Wall Weight Calculator'!$G$10*('Wall Weight Calculator'!$C$7-('Wall Weight Calculator'!$C$10+'Wall Weight Calculator'!$C$11))+'Wall Weight Calculator'!$G$11*('Wall Weight Calculator'!$C$7-('Wall Weight Calculator'!$C$10+'Wall Weight Calculator'!$C$11)))*'Wall Weight Calculator'!$E$16/1728*144/(('Wall Weight Calculator'!$C$8+'Wall Weight Calculator'!$C$13)*('Wall Weight Calculator'!$C$9+'Wall Weight Calculator'!$C$13)) -> 2.271652222 | F126: =SUM(Calculations!$F$144:$F$149) -> 47.17936198 | G126: =IF('Wall Weight Calculator'!$H$17="Partial",IF('Wall Weight Calculator'!$B25="No Grout",(8/'Wall Weight Calculator'!$H$18),IF('Wall Weight Calculator'!$H$18="No Grout",8/'Wall Weight Calculator'!$B25,((('Wall Weight Calculator'!$B25/8-1)+('Wall Weight Calculator'!$H$18/8))/(('Wall Weight Calculator'!$B25/8)*('Wall Weight Calculator'!$H$18/8))))),IF('Wall Weight Calculator'!$H$17="No Grout",0,1)) -> 1 | H126: =G126*F126 -> 47.17936198 | I126: 73 | J126: 76 | K126: 78 | L126: 81 | M126: 84 | N126: 86 | O126: 89
A127: Hollow | B127: 16 | C127: =IF('Unit Configuration'!$D$50="Face shell","Face shell","Full") -> Full | D127: =((('Wall Weight Calculator'!$C$9*'Wall Weight Calculator'!$C$10+'Wall Weight Calculator'!$C$9*'Wall Weight Calculator'!$C$11)*'Wall Weight Calculator'!$C$8+'Wall Weight Calculator'!$G$7*('Wall Weight Calculator'!$C$7-('Wall Weight Calculator'!$C$10+'Wall Weight Calculator'!$C$11))*'Wall Weight Calculator'!$F$7+'Wall Weight Calculator'!$G$8*('Wall Weight Calculator'!$C$7-('Wall Weight Calculator'!$C$10+'Wall Weight Calculator'!$C$11))*'Wall Weight Calculator'!$F$8+'Wall Weight Calculator'!$G$9*('Wall Weight Calculator'!$C$7-('Wall Weight Calculator'!$C$10+'Wall Weight Calculator'!$C$11))*'Wall Weight Calculator'!$F$9+'Wall Weight Calculator'!$G$10*('Wall Weight Calculator'!$C$7-('Wall Weight Calculator'!$C$10+'Wall Weight Calculator'!$C$11))*'Wall Weight Calculator'!$F$10+'Wall Weight Calculator'!$G$11*('Wall Weight Calculator'!$C$7-('Wall Weight Calculator'!$C$10+'Wall Weight Calculator'!$C$11))*'Wall Weight Calculator'!$F$11))*(1/1728)*(12/('Wall Weight Calculator'!$C$9+'Wall Weight Calculator'!$C$13))*(12/('Wall Weight Calculator'!$C$8+'Wall Weight Calculator'!$C$13)) -> 0.2702382406 | E127: =IF($C127="Full",$E$126,'Wall Weight Calculator'!$C$13*('Wall Weight Calculator'!$C$10*('Wall Weight Calculator'!$C$8+'Wall Weight Calculator'!$C$13+'Wall Weight Calculator'!$C$9)+'Wall Weight Calculator'!$C$11*('Wall Weight Calculator'!$C$8+'Wall Weight Calculator'!$C$13+'Wall Weight Calculator'!$C$9))*('Wall Weight Calculator'!$E$16/1728)*(12/('Wall Weight Calculator'!$C$9+'Wall Weight Calculator'!$C$13))*(12/('Wall Weight Calculator'!$C$8+'Wall Weight Calculator'!$C$13))+'Wall Weight Calculator'!$C$13*('Wall Weight Calculator'!$G$7*('Wall Weight Calculator'!$C$7-('Wall Weight Calculator'!$C$10+'Wall Weight Calculator'!$C$11))+'Wall Weight Calculator'!$G$8*('Wall Weight Calculator'!$C$7-('Wall Weight Calculator'!$C$10+'Wall Weight Calculator'!$C$11))+'Wall Weight Calculator'!$G$9*('Wall Weight Calculator'!$C$7-('Wall Weight Calculator'!$C$10+'Wall Weight Calculator'!$C$11))+'Wall Weight Calculator'!$G$10*('Wall Weight Calculator'!$C$7-('Wall Weight Calculator'!$C$10+'Wall Weight Calculator'!$C$11))+'Wall Weight Calculator'!$G$11*('Wall Weight Calculator'!$C$7-('Wall Weight Calculator'!$C$10+'Wall Weight Calculator'!$C$11)))*'Wall Weight Calculator'!$E$16/1728*144/(('Wall Weight Calculator'!$C$8+'Wall Weight Calculator'!$C$13)*('Wall Weight Calculator'!$C$9+'Wall Weight Calculator'!$C$13))*12/B127) -> 2.271652222 | F127: =SUM(Calculations!$F$144:$F$149) -> 47.17936198 | G127: =IF('Wall Weight Calculator'!$H$17="Partial",IF('Wall Weight Calculator'!$B26="No Grout",(8/'Wall Weight Calculator'!$H$18),IF('Wall Weight Calculator'!$H$18="No Grout",8/'Wall Weight Calculator'!$B26,((('Wall Weight Calculator'!$B26/8-1)+('Wall Weight Calculator'!$H$18/8))/(('Wall Weight Calculator'!$B26/8)*('Wall Weight Calculator'!$H$18/8))))),IF('Wall Weight Calculator'!$H$17="No Grout",0,1)) -> 0.5 | H127: =G127*F127 -> 23.58968099 | I127: 49 | J127: 52 | K127: 55 | L127: 57 | M127: 60 | N127: 63 | O127: 66
A128: Hollow | B128: 24 | C128: =IF('Unit Configuration'!$D$50="Face shell","Face shell","Full") -> Full | D128: =((('Wall Weight Calculator'!$C$9*'Wall Weight Calculator'!$C$10+'Wall Weight Calculator'!$C$9*'Wall Weight Calculator'!$C$11)*'Wall Weight Calculator'!$C$8+'Wall Weight Calculator'!$G$7*('Wall Weight Calculator'!$C$7-('Wall Weight Calculator'!$C$10+'Wall Weight Calculator'!$C$11))*'Wall Weight Calculator'!$F$7+'Wall Weight Calculator'!$G$8*('Wall Weight Calculator'!$C$7-('Wall Weight Calculator'!$C$10+'Wall Weight Calculator'!$C$11))*'Wall Weight Calculator'!$F$8+'Wall Weight Calculator'!$G$9*('Wall Weight Calculator'!$C$7-('Wall Weight Calculator'!$C$10+'Wall Weight Calculator'!$C$11))*'Wall Weight Calculator'!$F$9+'Wall Weight Calculator'!$G$10*('Wall Weight Calculator'!$C$7-('Wall Weight Calculator'!$C$10+'Wall Weight Calculator'!$C$11))*'Wall Weight Calculator'!$F$10+'Wall Weight Calculator'!$G$11*('Wall Weight Calculator'!$C$7-('Wall Weight Calculator'!$C$10+'Wall Weight Calculator'!$C$11))*'Wall Weight Calculator'!$F$11))*(1/1728)*(12/('Wall Weight Calculator'!$C$9+'Wall Weight Calculator'!$C$13))*(12/('Wall Weight Calculator'!$C$8+'Wall Weight Calculator'!$C$13)) -> 0.2702382406 | E128: =IF($C128="Full",$E$126,'Wall Weight Calculator'!$C$13*('Wall Weight Calculator'!$C$10*('Wall Weight Calculator'!$C$8+'Wall Weight Calculator'!$C$13+'Wall Weight Calculator'!$C$9)+'Wall Weight Calculator'!$C$11*('Wall Weight Calculator'!$C$8+'Wall Weight Calculator'!$C$13+'Wall Weight Calculator'!$C$9))*('Wall Weight Calculator'!$E$16/1728)*(12/('Wall Weight Calculator'!$C$9+'Wall Weight Calculator'!$C$13))*(12/('Wall Weight Calculator'!$C$8+'Wall Weight Calculator'!$C$13))+'Wall Weight Calculator'!$C$13*('Wall Weight Calculator'!$G$7*('Wall Weight Calculator'!$C$7-('Wall Weight Calculator'!$C$10+'Wall Weight Calculator'!$C$11))+'Wall Weight Calculator'!$G$8*('Wall Weight Calculator'!$C$7-('Wall Weight Calculator'!$C$10+'Wall Weight Calculator'!$C$11))+'Wall Weight Calculator'!$G$9*('Wall Weight Calculator'!$C$7-('Wall Weight Calculator'!$C$10+'Wall Weight Calculator'!$C$11))+'Wall Weight Calculator'!$G$10*('Wall Weight Calculator'!$C$7-('Wall Weight Calculator'!$C$10+'Wall Weight Calculator'!$C$11))+'Wall Weight Calculator'!$G$11*('Wall Weight Calculator'!$C$7-('Wall Weight Calculator'!$C$10+'Wall Weight Calculator'!$C$11)))*'Wall Weight Calculator'!$E$16/1728*144/(('Wall Weight Calculator'!$C$8+'Wall Weight Calculator'!$C$13)*('Wall Weight Calculator'!$C$9+'Wall Weight Calculator'!$C$13))*12/B128) -> 2.271652222 | F128: =SUM(Calculations!$F$144:$F$149) -> 47.17936198 | G128: =IF('Wall Weight Calculator'!$H$17="Partial",IF('Wall Weight Calculator'!$B27="No Grout",(8/'Wall Weight Calculator'!$H$18),IF('Wall Weight Calculator'!$H$18="No Grout",8/'Wall Weight Calculator'!$B27,((('Wall Weight Calculator'!$B27/8-1)+('Wall Weight Calculator'!$H$18/8))/(('Wall Weight Calculator'!$B27/8)*('Wall Weight Calculator'!$H$18/8))))),IF('Wall Weight Calculator'!$H$17="No Grout",0,1)) -> 0.3333333333 | H128: 15.72645399 | I128: 41 | J128: 44 | K128: 47 | L128: 50 | M128: 52 | N128: 55 | O128: 58
A129: Hollow | B129: 32 | C129: =IF('Unit Configuration'!$D$50="Face shell","Face shell","Full") -> Full | D129: =((('Wall Weight Calculator'!$C$9*'Wall Weight Calculator'!$C$10+'Wall Weight Calculator'!$C$9*'Wall Weight Calculator'!$C$11)*'Wall Weight Calculator'!$C$8+'Wall Weight Calculator'!$G$7*('Wall Weight Calculator'!$C$7-('Wall Weight Calculator'!$C$10+'Wall Weight Calculator'!$C$11))*'Wall Weight Calculator'!$F$7+'Wall Weight Calculator'!$G$8*('Wall Weight Calculator'!$C$7-('Wall Weight Calculator'!$C$10+'Wall Weight Calculator'!$C$11))*'Wall Weight Calculator'!$F$8+'Wall Weight Calculator'!$G$9*('Wall Weight Calculator'!$C$7-('Wall Weight Calculator'!$C$10+'Wall Weight Calculator'!$C$11))*'Wall Weight Calculator'!$F$9+'Wall Weight Calculator'!$G$10*('Wall Weight Calculator'!$C$7-('Wall Weight Calculator'!$C$10+'Wall Weight Calculator'!$C$11))*'Wall Weight Calculator'!$F$10+'Wall Weight Calculator'!$G$11*('Wall Weight Calculator'!$C$7-('Wall Weight Calculator'!$C$10+'Wall Weight Calculator'!$C$11))*'Wall Weight Calculator'!$F$11))*(1/1728)*(12/('Wall Weight Calculator'!$C$9+'Wall Weight Calculator'!$C$13))*(12/('Wall Weight Calculator'!$C$8+'Wall Weight Calculator'!$C$13)) -> 0.2702382406 | E129: =IF($C129="Full",$E$126,'Wall Weight Calculator'!$C$13*('Wall Weight Calculator'!$C$10*('Wall Weight Calculator'!$C$8+'Wall Weight Calculator'!$C$13+'Wall Weight Calculator'!$C$9)+'Wall Weight Calculator'!$C$11*('Wall Weight Calculator'!$C$8+'Wall Weight Calculator'!$C$13+'Wall Weight Calculator'!$C$9))*('Wall Weight Calculator'!$E$16/1728)*(12/('Wall Weight Calculator'!$C$9+'Wall Weight Calculator'!$C$13))*(12/('Wall Weight Calculator'!$C$8+'Wall Weight Calculator'!$C$13))+'Wall Weight Calculator'!$C$13*('Wall Weight Calculator'!$G$7*('Wall Weight Calculator'!$C$7-('Wall Weight Calculator'!$C$10+'Wall Weight Calculator'!$C$11))+'Wall Weight Calculator'!$G$8*('Wall Weight Calculator'!$C$7-('Wall Weight Calculator'!$C$10+'Wall Weight Calculator'!$C$11))+'Wall Weight Calculator'!$G$9*('Wall Weight Calculator'!$C$7-('Wall Weight Calculator'!$C$10+'Wall Weight Calculator'!$C$11))+'Wall Weight Calculator'!$G$10*('Wall Weight Calculator'!$C$7-('Wall Weight Calculator'!$C$10+'Wall Weight Calculator'!$C$11))+'Wall Weight Calculator'!$G$11*('Wall Weight Calculator'!$C$7-('Wall Weight Calculator'!$C$10+'Wall Weight Calculator'!$C$11)))*'Wall Weight Calculator'!$E$16/1728*144/(('Wall Weight Calculator'!$C$8+'Wall Weight Calculator'!$C$13)*('Wall Weight Calculator'!$C$9+'Wall Weight Calculator'!$C$13))*12/B129) -> 2.271652222 | F129: =SUM(Calculations!$F$144:$F$149) -> 47.17936198 | G129: =IF('Wall Weight Calculator'!$H$17="Partial",IF('Wall Weight Calculator'!$B28="No Grout",(8/'Wall Weight Calculator'!$H$18),IF('Wall Weight Calculator'!$H$18="No Grout",8/'Wall Weight Calculator'!$B28,((('Wall Weight Calculator'!$B28/8-1)+('Wall Weight Calculator'!$H$18/8))/(('Wall Weight Calculator'!$B28/8)*('Wall Weight Calculator'!$H$18/8))))),IF('Wall Weight Calculator'!$H$17="No Grout",0,1)) -> 0.25 | H129: 11.79484049 | I129: 38 | J129: 40 | K129: 43 | L129: 46 | M129: 48 | N129: 51 | O129: 54
A130: Hollow | B130: 40 | C130: =IF('Unit Configuration'!$D$50="Face shell","Face shell","Full") -> Full | D130: =((('Wall Weight Calculator'!$C$9*'Wall Weight Calculator'!$C$10+'Wall Weight Calculator'!$C$9*'Wall Weight Calculator'!$C$11)*'Wall Weight Calculator'!$C$8+'Wall Weight Calculator'!$G$7*('Wall Weight Calculator'!$C$7-('Wall Weight Calculator'!$C$10+'Wall Weight Calculator'!$C$11))*'Wall Weight Calculator'!$F$7+'Wall Weight Calculator'!$G$8*('Wall Weight Calculator'!$C$7-('Wall Weight Calculator'!$C$10+'Wall Weight Calculator'!$C$11))*'Wall Weight Calculator'!$F$8+'Wall Weight Calculator'!$G$9*('Wall Weight Calculator'!$C$7-('Wall Weight Calculator'!$C$10+'Wall Weight Calculator'!$C$11))*'Wall Weight Calculator'!$F$9+'Wall Weight Calculator'!$G$10*('Wall Weight Calculator'!$C$7-('Wall Weight Calculator'!$C$10+'Wall Weight Calculator'!$C$11))*'Wall Weight Calculator'!$F$10+'Wall Weight Calculator'!$G$11*('Wall Weight Calculator'!$C$7-('Wall Weight Calculator'!$C$10+'Wall Weight Calculator'!$C$11))*'Wall Weight Calculator'!$F$11))*(1/1728)*(12/('Wall Weight Calculator'!$C$9+'Wall Weight Calculator'!$C$13))*(12/('Wall Weight Calculator'!$C$8+'Wall Weight Calculator'!$C$13)) -> 0.2702382406 | E130: =IF($C130="Full",$E$126,'Wall Weight Calculator'!$C$13*('Wall Weight Calculator'!$C$10*('Wall Weight Calculator'!$C$8+'Wall Weight Calculator'!$C$13+'Wall Weight Calculator'!$C$9)+'Wall Weight Calculator'!$C$11*('Wall Weight Calculator'!$C$8+'Wall Weight Calculator'!$C$13+'Wall Weight Calculator'!$C$9))*('Wall Weight Calculator'!$E$16/1728)*(12/('Wall Weight Calculator'!$C$9+'Wall Weight Calculator'!$C$13))*(12/('Wall Weight Calculator'!$C$8+'Wall Weight Calculator'!$C$13))+'Wall Weight Calculator'!$C$13*('Wall Weight Calculator'!$G$7*('Wall Weight Calculator'!$C$7-('Wall Weight Calculator'!$C$10+'Wall Weight Calculator'!$C$11))+'Wall Weight Calculator'!$G$8*('Wall Weight Calculator'!$C$7-('Wall Weight Calculator'!$C$10+'Wall Weight Calculator'!$C$11))+'Wall Weight Calculator'!$G$9*('Wall Weight Calculator'!$C$7-('Wall Weight Calculator'!$C$10+'Wall Weight Calculator'!$C$11))+'Wall Weight Calculator'!$G$10*('Wall Weight Calculator'!$C$7-('Wall Weight Calculator'!$C$10+'Wall Weight Calculator'!$C$11))+'Wall Weight Calculator'!$G$11*('Wall Weight Calculator'!$C$7-('Wall Weight Calculator'!$C$10+'Wall Weight Calculator'!$C$11)))*'Wall Weight Calculator'!$E$16/1728*144/(('Wall Weight Calculator'!$C$8+'Wall Weight Calculator'!$C$13)*('Wall Weight Calculator'!$C$9+'Wall Weight Calculator'!$C$13))*12/B130) -> 2.271652222 | F130: =SUM(Calculations!$F$144:$F$149) -> 47.17936198 | G130: =IF('Wall Weight Calculator'!$H$17="Partial",IF('Wall Weight Calculator'!$B29="No Grout",(8/'Wall Weight Calculator'!$H$18),IF('Wall Weight Calculator'!$H$18="No Grout",8/'Wall Weight Calculator'!$B29,((('Wall Weight Calculator'!$B29/8-1)+('Wall Weight Calculator'!$H$18/8))/(('Wall Weight Calculator'!$B29/8)*('Wall Weight Calculator'!$H$18/8))))),IF('Wall Weight Calculator'!$H$17="No Grout",0,1)) -> 0.2 | H130: 9.435872396 | I130: 35 | J130: 38 | K130: 41 | L130: 43 | M130: 46 | N130: 49 | O130: 51
A131: Hollow | B131: 48 | C131: =IF('Unit Configuration'!$D$50="Face shell","Face shell","Full") -> Full | D131: =((('Wall Weight Calculator'!$C$9*'Wall Weight Calculator'!$C$10+'Wall Weight Calculator'!$C$9*'Wall Weight Calculator'!$C$11)*'Wall Weight Calculator'!$C$8+'Wall Weight Calculator'!$G$7*('Wall Weight Calculator'!$C$7-('Wall Weight Calculator'!$C$10+'Wall Weight Calculator'!$C$11))*'Wall Weight Calculator'!$F$7+'Wall Weight Calculator'!$G$8*('Wall Weight Calculator'!$C$7-('Wall Weight Calculator'!$C$10+'Wall Weight Calculator'!$C$11))*'Wall Weight Calculator'!$F$8+'Wall Weight Calculator'!$G$9*('Wall Weight Calculator'!$C$7-('Wall Weight Calculator'!$C$10+'Wall Weight Calculator'!$C$11))*'Wall Weight Calculator'!$F$9+'Wall Weight Calculator'!$G$10*('Wall Weight Calculator'!$C$7-('Wall Weight Calculator'!$C$10+'Wall Weight Calculator'!$C$11))*'Wall Weight Calculator'!$F$10+'Wall Weight Calculator'!$G$11*('Wall Weight Calculator'!$C$7-('Wall Weight Calculator'!$C$10+'Wall Weight Calculator'!$C$11))*'Wall Weight Calculator'!$F$11))*(1/1728)*(12/('Wall Weight Calculator'!$C$9+'Wall Weight Calculator'!$C$13))*(12/('Wall Weight Calculator'!$C$8+'Wall Weight Calculator'!$C$13)) -> 0.2702382406 | E131: =IF($C131="Full",$E$126,'Wall Weight Calculator'!$C$13*('Wall Weight Calculator'!$C$10*('Wall Weight Calculator'!$C$8+'Wall Weight Calculator'!$C$13+'Wall Weight Calculator'!$C$9)+'Wall Weight Calculator'!$C$11*('Wall Weight Calculator'!$C$8+'Wall Weight Calculator'!$C$13+'Wall Weight Calculator'!$C$9))*('Wall Weight Calculator'!$E$16/1728)*(12/('Wall Weight Calculator'!$C$9+'Wall Weight Calculator'!$C$13))*(12/('Wall Weight Calculator'!$C$8+'Wall Weight Calculator'!$C$13))+'Wall Weight Calculator'!$C$13*('Wall Weight Calculator'!$G$7*('Wall Weight Calculator'!$C$7-('Wall Weight Calculator'!$C$10+'Wall Weight Calculator'!$C$11))+'Wall Weight Calculator'!$G$8*('Wall Weight Calculator'!$C$7-('Wall Weight Calculator'!$C$10+'Wall Weight Calculator'!$C$11))+'Wall Weight Calculator'!$G$9*('Wall Weight Calculator'!$C$7-('Wall Weight Calculator'!$C$10+'Wall Weight Calculator'!$C$11))+'Wall Weight Calculator'!$G$10*('Wall Weight Calculator'!$C$7-('Wall Weight Calculator'!$C$10+'Wall Weight Calculator'!$C$11))+'Wall Weight Calculator'!$G$11*('Wall Weight Calculator'!$C$7-('Wall Weight Calculator'!$C$10+'Wall Weight Calculator'!$C$11)))*'Wall Weight Calculator'!$E$16/1728*144/(('Wall Weight Calculator'!$C$8+'Wall Weight Calculator'!$C$13)*('Wall Weight Calculator'!$C$9+'Wall Weight Calculator'!$C$13))*12/B131) -> 2.271652222 | F131: =SUM(Calculations!$F$144:$F$149) -> 47.17936198 | G131: =IF('Wall Weight Calculator'!$H$17="Partial",IF('Wall Weight Calculator'!$B30="No Grout",(8/'Wall Weight Calculator'!$H$18),IF('Wall Weight Calculator'!$H$18="No Grout",8/'Wall Weight Calculator'!$B30,((('Wall Weight Calculator'!$B30/8-1)+('Wall Weight Calculator'!$H$18/8))/(('Wall Weight Calculator'!$B30/8)*('Wall Weight Calculator'!$H$18/8))))),IF('Wall Weight Calculator'!$H$17="No Grout",0,1)) -> 0.1666666667 | H131: 7.863226997 | I131: 34 | J131: 36 | K131: 39 | L131: 42 | M131: 44 | N131: 47 | O131: 50
A132: Hollow | B132: 56 | C132: =IF('Unit Configuration'!$D$50="Face shell","Face shell","Full") -> Full | D132: =((('Wall Weight Calculator'!$C$9*'Wall Weight Calculator'!$C$10+'Wall Weight Calculator'!$C$9*'Wall Weight Calculator'!$C$11)*'Wall Weight Calculator'!$C$8+'Wall Weight Calculator'!$G$7*('Wall Weight Calculator'!$C$7-('Wall Weight Calculator'!$C$10+'Wall Weight Calculator'!$C$11))*'Wall Weight Calculator'!$F$7+'Wall Weight Calculator'!$G$8*('Wall Weight Calculator'!$C$7-('Wall Weight Calculator'!$C$10+'Wall Weight Calculator'!$C$11))*'Wall Weight Calculator'!$F$8+'Wall Weight Calculator'!$G$9*('Wall Weight Calculator'!$C$7-('Wall Weight Calculator'!$C$10+'Wall Weight Calculator'!$C$11))*'Wall Weight Calculator'!$F$9+'Wall Weight Calculator'!$G$10*('Wall Weight Calculator'!$C$7-('Wall Weight Calculator'!$C$10+'Wall Weight Calculator'!$C$11))*'Wall Weight Calculator'!$F$10+'Wall Weight Calculator'!$G$11*('Wall Weight Calculator'!$C$7-('Wall Weight Calculator'!$C$10+'Wall Weight Calculator'!$C$11))*'Wall Weight Calculator'!$F$11))*(1/1728)*(12/('Wall Weight Calculator'!$C$9+'Wall Weight Calculator'!$C$13))*(12/('Wall Weight Calculator'!$C$8+'Wall Weight Calculator'!$C$13)) -> 0.2702382406 | E132: =IF($C132="Full",$E$126,'Wall Weight Calculator'!$C$13*('Wall Weight Calculator'!$C$10*('Wall Weight Calculator'!$C$8+'Wall Weight Calculator'!$C$13+'Wall Weight Calculator'!$C$9)+'Wall Weight Calculator'!$C$11*('Wall Weight Calculator'!$C$8+'Wall Weight Calculator'!$C$13+'Wall Weight Calculator'!$C$9))*('Wall Weight Calculator'!$E$16/1728)*(12/('Wall Weight Calculator'!$C$9+'Wall Weight Calculator'!$C$13))*(12/('Wall Weight Calculator'!$C$8+'Wall Weight Calculator'!$C$13))+'Wall Weight Calculator'!$C$13*('Wall Weight Calculator'!$G$7*('Wall Weight Calculator'!$C$7-('Wall Weight Calculator'!$C$10+'Wall Weight Calculator'!$C$11))+'Wall Weight Calculator'!$G$8*('Wall Weight Calculator'!$C$7-('Wall Weight Calculator'!$C$10+'Wall Weight Calculator'!$C$11))+'Wall Weight Calculator'!$G$9*('Wall Weight Calculator'!$C$7-('Wall Weight Calculator'!$C$10+'Wall Weight Calculator'!$C$11))+'Wall Weight Calculator'!$G$10*('Wall Weight Calculator'!$C$7-('Wall Weight Calculator'!$C$10+'Wall Weight Calculator'!$C$11))+'Wall Weight Calculator'!$G$11*('Wall Weight Calculator'!$C$7-('Wall Weight Calculator'!$C$10+'Wall Weight Calculator'!$C$11)))*'Wall Weight Calculator'!$E$16/1728*144/(('Wall Weight Calculator'!$C$8+'Wall Weight Calculator'!$C$13)*('Wall Weight Calculator'!$C$9+'Wall Weight Calculator'!$C$13))*12/B132) -> 2.271652222 | F132: =SUM(Calculations!$F$144:$F$149) -> 47.17936198 | G132: =IF('Wall Weight Calculator'!$H$17="Partial",IF('Wall Weight Calculator'!$B31="No Grout",(8/'Wall Weight Calculator'!$H$18),IF('Wall Weight Calculator'!$H$18="No Grout",8/'Wall Weight Calculator'!$B31,((('Wall Weight Calculator'!$B31/8-1)+('Wall Weight Calculator'!$H$18/8))/(('Wall Weight Calculator'!$B31/8)*('Wall Weight Calculator'!$H$18/8))))),IF('Wall Weight Calculator'!$H$17="No Grout",0,1)) -> 0.1428571429 | H132: 6.739908854 | I132: 32 | J132: 35 | K132: 38 | L132: 41 | M132: 43 | N132: 46 | O132: 49
A133: Hollow | B133: 64 | C133: =IF('Unit Configuration'!$D$50="Face shell","Face shell","Full") -> Full | D133: =((('Wall Weight Calculator'!$C$9*'Wall Weight Calculator'!$C$10+'Wall Weight Calculator'!$C$9*'Wall Weight Calculator'!$C$11)*'Wall Weight Calculator'!$C$8+'Wall Weight Calculator'!$G$7*('Wall Weight Calculator'!$C$7-('Wall Weight Calculator'!$C$10+'Wall Weight Calculator'!$C$11))*'Wall Weight Calculator'!$F$7+'Wall Weight Calculator'!$G$8*('Wall Weight Calculator'!$C$7-('Wall Weight Calculator'!$C$10+'Wall Weight Calculator'!$C$11))*'Wall Weight Calculator'!$F$8+'Wall Weight Calculator'!$G$9*('Wall Weight Calculator'!$C$7-('Wall Weight Calculator'!$C$10+'Wall Weight Calculator'!$C$11))*'Wall Weight Calculator'!$F$9+'Wall Weight Calculator'!$G$10*('Wall Weight Calculator'!$C$7-('Wall Weight Calculator'!$C$10+'Wall Weight Calculator'!$C$11))*'Wall Weight Calculator'!$F$10+'Wall Weight Calculator'!$G$11*('Wall Weight Calculator'!$C$7-('Wall Weight Calculator'!$C$10+'Wall Weight Calculator'!$C$11))*'Wall Weight Calculator'!$F$11))*(1/1728)*(12/('Wall Weight Calculator'!$C$9+'Wall Weight Calculator'!$C$13))*(12/('Wall Weight Calculator'!$C$8+'Wall Weight Calculator'!$C$13)) -> 0.2702382406 | E133: =IF($C133="Full",$E$126,'Wall Weight Calculator'!$C$13*('Wall Weight Calculator'!$C$10*('Wall Weight Calculator'!$C$8+'Wall Weight Calculator'!$C$13+'Wall Weight Calculator'!$C$9)+'Wall Weight Calculator'!$C$11*('Wall Weight Calculator'!$C$8+'Wall Weight Calculator'!$C$13+'Wall Weight Calculator'!$C$9))*('Wall Weight Calculator'!$E$16/1728)*(12/('Wall Weight Calculator'!$C$9+'Wall Weight Calculator'!$C$13))*(12/('Wall Weight Calculator'!$C$8+'Wall Weight Calculator'!$C$13))+'Wall Weight Calculator'!$C$13*('Wall Weight Calculator'!$G$7*('Wall Weight Calculator'!$C$7-('Wall Weight Calculator'!$C$10+'Wall Weight Calculator'!$C$11))+'Wall Weight Calculator'!$G$8*('Wall Weight Calculator'!$C$7-('Wall Weight Calculator'!$C$10+'Wall Weight Calculator'!$C$11))+'Wall Weight Calculator'!$G$9*('Wall Weight Calculator'!$C$7-('Wall Weight Calculator'!$C$10+'Wall Weight Calculator'!$C$11))+'Wall Weight Calculator'!$G$10*('Wall Weight Calculator'!$C$7-('Wall Weight Calculator'!$C$10+'Wall Weight Calculator'!$C$11))+'Wall Weight Calculator'!$G$11*('Wall Weight Calculator'!$C$7-('Wall Weight Calculator'!$C$10+'Wall Weight Calculator'!$C$11)))*'Wall Weight Calculator'!$E$16/1728*144/(('Wall Weight Calculator'!$C$8+'Wall Weight Calculator'!$C$13)*('Wall Weight Calculator'!$C$9+'Wall Weight Calculator'!$C$13))*12/B133) -> 2.271652222 | F133: =SUM(Calculations!$F$144:$F$149) -> 47.17936198 | G133: =IF('Wall Weight Calculator'!$H$17="Partial",IF('Wall Weight Calculator'!$B32="No Grout",(8/'Wall Weight Calculator'!$H$18),IF('Wall Weight Calculator'!$H$18="No Grout",8/'Wall Weight Calculator'!$B32,((('Wall Weight Calculator'!$B32/8-1)+('Wall Weight Calculator'!$H$18/8))/(('Wall Weight Calculator'!$B32/8)*('Wall Weight Calculator'!$H$18/8))))),IF('Wall Weight Calculator'!$H$17="No Grout",0,1)) -> 0.125 | H133: 5.897420247 | I133: =ROUNDUP(($D133*I$122)+$E133+$H133,0) -> 32 | J133: 34 | K133: 37 | L133: 40 | M133: 42 | N133: 45 | O133: 48
A134: Hollow | B134: 72 | C134: =IF('Unit Configuration'!$D$50="Face shell","Face shell","Full") -> Full | D134: =((('Wall Weight Calculator'!$C$9*'Wall Weight Calculator'!$C$10+'Wall Weight Calculator'!$C$9*'Wall Weight Calculator'!$C$11)*'Wall Weight Calculator'!$C$8+'Wall Weight Calculator'!$G$7*('Wall Weight Calculator'!$C$7-('Wall Weight Calculator'!$C$10+'Wall Weight Calculator'!$C$11))*'Wall Weight Calculator'!$F$7+'Wall Weight Calculator'!$G$8*('Wall Weight Calculator'!$C$7-('Wall Weight Calculator'!$C$10+'Wall Weight Calculator'!$C$11))*'Wall Weight Calculator'!$F$8+'Wall Weight Calculator'!$G$9*('Wall Weight Calculator'!$C$7-('Wall Weight Calculator'!$C$10+'Wall Weight Calculator'!$C$11))*'Wall Weight Calculator'!$F$9+'Wall Weight Calculator'!$G$10*('Wall Weight Calculator'!$C$7-('Wall Weight Calculator'!$C$10+'Wall Weight Calculator'!$C$11))*'Wall Weight Calculator'!$F$10+'Wall Weight Calculator'!$G$11*('Wall Weight Calculator'!$C$7-('Wall Weight Calculator'!$C$10+'Wall Weight Calculator'!$C$11))*'Wall Weight Calculator'!$F$11))*(1/1728)*(12/('Wall Weight Calculator'!$C$9+'Wall Weight Calculator'!$C$13))*(12/('Wall Weight Calculator'!$C$8+'Wall Weight Calculator'!$C$13)) -> 0.2702382406 | E134: =IF($C134="Full",$E$126,'Wall Weight Calculator'!$C$13*('Wall Weight Calculator'!$C$10*('Wall Weight Calculator'!$C$8+'Wall Weight Calculator'!$C$13+'Wall Weight Calculator'!$C$9)+'Wall Weight Calculator'!$C$11*('Wall Weight Calculator'!$C$8+'Wall Weight Calculator'!$C$13+'Wall Weight Calculator'!$C$9))*('Wall Weight Calculator'!$E$16/1728)*(12/('Wall Weight Calculator'!$C$9+'Wall Weight Calculator'!$C$13))*(12/('Wall Weight Calculator'!$C$8+'Wall Weight Calculator'!$C$13))+'Wall Weight Calculator'!$C$13*('Wall Weight Calculator'!$G$7*('Wall Weight Calculator'!$C$7-('Wall Weight Calculator'!$C$10+'Wall Weight Calculator'!$C$11))+'Wall Weight Calculator'!$G$8*('Wall Weight Calculator'!$C$7-('Wall Weight Calculator'!$C$10+'Wall Weight Calculator'!$C$11))+'Wall Weight Calculator'!$G$9*('Wall Weight Calculator'!$C$7-('Wall Weight Calculator'!$C$10+'Wall Weight Calculator'!$C$11))+'Wall Weight Calculator'!$G$10*('Wall Weight Calculator'!$C$7-('Wall Weight Calculator'!$C$10+'Wall Weight Calculator'!$C$11))+'Wall Weight Calculator'!$G$11*('Wall Weight Calculator'!$C$7-('Wall Weight Calculator'!$C$10+'Wall Weight Calculator'!$C$11)))*'Wall Weight Calculator'!$E$16/1728*144/(('Wall Weight Calculator'!$C$8+'Wall Weight Calculator'!$C$13)*('Wall Weight Calculator'!$C$9+'Wall Weight Calculator'!$C$13))*12/B134) -> 2.271652222 | F134: =SUM(Calculations!$F$144:$F$149) -> 47.17936198 | G134: =IF('Wall Weight Calculator'!$H$17="Partial",IF('Wall Weight Calculator'!$B33="No Grout",(8/'Wall Weight Calculator'!$H$18),IF('Wall Weight Calculator'!$H$18="No Grout",8/'Wall Weight Calculator'!$B33,((('Wall Weight Calculator'!$B33/8-1)+('Wall Weight Calculator'!$H$18/8))/(('Wall Weight Calculator'!$B33/8)*('Wall Weight Calculator'!$H$18/8))))),IF('Wall Weight Calculator'!$H$17="No Grout",0,1)) -> 0.1111111111 | H134: 5.242151331 | I134: 31 | J134: 34 | K134: 36 | L134: 39 | M134: 42 | N134: 44 | O134: 47
A135: Hollow | B135: 80 | C135: =IF('Unit Configuration'!$D$50="Face shell","Face shell","Full") -> Full | D135: =((('Wall Weight Calculator'!$C$9*'Wall Weight Calculator'!$C$10+'Wall Weight Calculator'!$C$9*'Wall Weight Calculator'!$C$11)*'Wall Weight Calculator'!$C$8+'Wall Weight Calculator'!$G$7*('Wall Weight Calculator'!$C$7-('Wall Weight Calculator'!$C$10+'Wall Weight Calculator'!$C$11))*'Wall Weight Calculator'!$F$7+'Wall Weight Calculator'!$G$8*('Wall Weight Calculator'!$C$7-('Wall Weight Calculator'!$C$10+'Wall Weight Calculator'!$C$11))*'Wall Weight Calculator'!$F$8+'Wall Weight Calculator'!$G$9*('Wall Weight Calculator'!$C$7-('Wall Weight Calculator'!$C$10+'Wall Weight Calculator'!$C$11))*'Wall Weight Calculator'!$F$9+'Wall Weight Calculator'!$G$10*('Wall Weight Calculator'!$C$7-('Wall Weight Calculator'!$C$10+'Wall Weight Calculator'!$C$11))*'Wall Weight Calculator'!$F$10+'Wall Weight Calculator'!$G$11*('Wall Weight Calculator'!$C$7-('Wall Weight Calculator'!$C$10+'Wall Weight Calculator'!$C$11))*'Wall Weight Calculator'!$F$11))*(1/1728)*(12/('Wall Weight Calculator'!$C$9+'Wall Weight Calculator'!$C$13))*(12/('Wall Weight Calculator'!$C$8+'Wall Weight Calculator'!$C$13)) -> 0.2702382406 | E135: =IF($C135="Full",$E$126,'Wall Weight Calculator'!$C$13*('Wall Weight Calculator'!$C$10*('Wall Weight Calculator'!$C$8+'Wall Weight Calculator'!$C$13+'Wall Weight Calculator'!$C$9)+'Wall Weight Calculator'!$C$11*('Wall Weight Calculator'!$C$8+'Wall Weight Calculator'!$C$13+'Wall Weight Calculator'!$C$9))*('Wall Weight Calculator'!$E$16/1728)*(12/('Wall Weight Calculator'!$C$9+'Wall Weight Calculator'!$C$13))*(12/('Wall Weight Calculator'!$C$8+'Wall Weight Calculator'!$C$13))+'Wall Weight Calculator'!$C$13*('Wall Weight Calculator'!$G$7*('Wall Weight Calculator'!$C$7-('Wall Weight Calculator'!$C$10+'Wall Weight Calculator'!$C$11))+'Wall Weight Calculator'!$G$8*('Wall Weight Calculator'!$C$7-('Wall Weight Calculator'!$C$10+'Wall Weight Calculator'!$C$11))+'Wall Weight Calculator'!$G$9*('Wall Weight Calculator'!$C$7-('Wall Weight Calculator'!$C$10+'Wall Weight Calculator'!$C$11))+'Wall Weight Calculator'!$G$10*('Wall Weight Calculator'!$C$7-('Wall Weight Calculator'!$C$10+'Wall Weight Calculator'!$C$11))+'Wall Weight Calculator'!$G$11*('Wall Weight Calculator'!$C$7-('Wall Weight Calculator'!$C$10+'Wall Weight Calculator'!$C$11)))*'Wall Weight Calculator'!$E$16/1728*144/(('Wall Weight Calculator'!$C$8+'Wall Weight Calculator'!$C$13)*('Wall Weight Calculator'!$C$9+'Wall Weight Calculator'!$C$13))*12/B135) -> 2.271652222 | F135: =SUM(Calculations!$F$144:$F$149) -> 47.17936198 | G135: =IF('Wall Weight Calculator'!$H$17="Partial",IF('Wall Weight Calculator'!$B34="No Grout",(8/'Wall Weight Calculator'!$H$18),IF('Wall Weight Calculator'!$H$18="No Grout",8/'Wall Weight Calculator'!$B34,((('Wall Weight Calculator'!$B34/8-1)+('Wall Weight Calculator'!$H$18/8))/(('Wall Weight Calculator'!$B34/8)*('Wall Weight Calculator'!$H$18/8))))),IF('Wall Weight Calculator'!$H$17="No Grout",0,1)) -> 0.1 | H135: 4.717936198 | I135: 30 | J135: 33 | K135: 36 | L135: 39 | M135: 41 | N135: 44 | O135: 47
A136: Hollow | B136: 88 | C136: =IF('Unit Configuration'!$D$50="Face shell","Face shell","Full") -> Full | D136: =((('Wall Weight Calculator'!$C$9*'Wall Weight Calculator'!$C$10+'Wall Weight Calculator'!$C$9*'Wall Weight Calculator'!$C$11)*'Wall Weight Calculator'!$C$8+'Wall Weight Calculator'!$G$7*('Wall Weight Calculator'!$C$7-('Wall Weight Calculator'!$C$10+'Wall Weight Calculator'!$C$11))*'Wall Weight Calculator'!$F$7+'Wall Weight Calculator'!$G$8*('Wall Weight Calculator'!$C$7-('Wall Weight Calculator'!$C$10+'Wall Weight Calculator'!$C$11))*'Wall Weight Calculator'!$F$8+'Wall Weight Calculator'!$G$9*('Wall Weight Calculator'!$C$7-('Wall Weight Calculator'!$C$10+'Wall Weight Calculator'!$C$11))*'Wall Weight Calculator'!$F$9+'Wall Weight Calculator'!$G$10*('Wall Weight Calculator'!$C$7-('Wall Weight Calculator'!$C$10+'Wall Weight Calculator'!$C$11))*'Wall Weight Calculator'!$F$10+'Wall Weight Calculator'!$G$11*('Wall Weight Calculator'!$C$7-('Wall Weight Calculator'!$C$10+'Wall Weight Calculator'!$C$11))*'Wall Weight Calculator'!$F$11))*(1/1728)*(12/('Wall Weight Calculator'!$C$9+'Wall Weight Calculator'!$C$13))*(12/('Wall Weight Calculator'!$C$8+'Wall Weight Calculator'!$C$13)) -> 0.2702382406 | E136: =IF($C136="Full",$E$126,'Wall Weight Calculator'!$C$13*('Wall Weight Calculator'!$C$10*('Wall Weight Calculator'!$C$8+'Wall Weight Calculator'!$C$13+'Wall Weight Calculator'!$C$9)+'Wall Weight Calculator'!$C$11*('Wall Weight Calculator'!$C$8+'Wall Weight Calculator'!$C$13+'Wall Weight Calculator'!$C$9))*('Wall Weight Calculator'!$E$16/1728)*(12/('Wall Weight Calculator'!$C$9+'Wall Weight Calculator'!$C$13))*(12/('Wall Weight Calculator'!$C$8+'Wall Weight Calculator'!$C$13))+'Wall Weight Calculator'!$C$13*('Wall Weight Calculator'!$G$7*('Wall Weight Calculator'!$C$7-('Wall Weight Calculator'!$C$10+'Wall Weight Calculator'!$C$11))+'Wall Weight Calculator'!$G$8*('Wall Weight Calculator'!$C$7-('Wall Weight Calculator'!$C$10+'Wall Weight Calculator'!$C$11))+'Wall Weight Calculator'!$G$9*('Wall Weight Calculator'!$C$7-('Wall Weight Calculator'!$C$10+'Wall Weight Calculator'!$C$11))+'Wall Weight Calculator'!$G$10*('Wall Weight Calculator'!$C$7-('Wall Weight Calculator'!$C$10+'Wall Weight Calculator'!$C$11))+'Wall Weight Calculator'!$G$11*('Wall Weight Calculator'!$C$7-('Wall Weight Calculator'!$C$10+'Wall Weight Calculator'!$C$11)))*'Wall Weight Calculator'!$E$16/1728*144/(('Wall Weight Calculator'!$C$8+'Wall Weight Calculator'!$C$13)*('Wall Weight Calculator'!$C$9+'Wall Weight Calculator'!$C$13))*12/B136) -> 2.271652222 | F136: =SUM(Calculations!$F$144:$F$149) -> 47.17936198 | G136: =IF('Wall Weight Calculator'!$H$17="Partial",IF('Wall Weight Calculator'!$B35="No Grout",(8/'Wall Weight Calculator'!$H$18),IF('Wall Weight Calculator'!$H$18="No Grout",8/'Wall Weight Calculator'!$B35,((('Wall Weight Calculator'!$B35/8-1)+('Wall Weight Calculator'!$H$18/8))/(('Wall Weight Calculator'!$B35/8)*('Wall Weight Calculator'!$H$18/8))))),IF('Wall Weight Calculator'!$H$17="No Grout",0,1)) -> 0.09090909091 | H136: 4.289032907 | I136: 30 | J136: 33 | K136: 35 | L136: 38 | M136: 41 | N136: 44 | O136: 46
A137: Hollow | B137: 96 | C137: =IF('Unit Configuration'!$D$50="Face shell","Face shell","Full") -> Full | D137: =((('Wall Weight Calculator'!$C$9*'Wall Weight Calculator'!$C$10+'Wall Weight Calculator'!$C$9*'Wall Weight Calculator'!$C$11)*'Wall Weight Calculator'!$C$8+'Wall Weight Calculator'!$G$7*('Wall Weight Calculator'!$C$7-('Wall Weight Calculator'!$C$10+'Wall Weight Calculator'!$C$11))*'Wall Weight Calculator'!$F$7+'Wall Weight Calculator'!$G$8*('Wall Weight Calculator'!$C$7-('Wall Weight Calculator'!$C$10+'Wall Weight Calculator'!$C$11))*'Wall Weight Calculator'!$F$8+'Wall Weight Calculator'!$G$9*('Wall Weight Calculator'!$C$7-('Wall Weight Calculator'!$C$10+'Wall Weight Calculator'!$C$11))*'Wall Weight Calculator'!$F$9+'Wall Weight Calculator'!$G$10*('Wall Weight Calculator'!$C$7-('Wall Weight Calculator'!$C$10+'Wall Weight Calculator'!$C$11))*'Wall Weight Calculator'!$F$10+'Wall Weight Calculator'!$G$11*('Wall Weight Calculator'!$C$7-('Wall Weight Calculator'!$C$10+'Wall Weight Calculator'!$C$11))*'Wall Weight Calculator'!$F$11))*(1/1728)*(12/('Wall Weight Calculator'!$C$9+'Wall Weight Calculator'!$C$13))*(12/('Wall Weight Calculator'!$C$8+'Wall Weight Calculator'!$C$13)) -> 0.2702382406 | E137: =IF($C137="Full",$E$126,'Wall Weight Calculator'!$C$13*('Wall Weight Calculator'!$C$10*('Wall Weight Calculator'!$C$8+'Wall Weight Calculator'!$C$13+'Wall Weight Calculator'!$C$9)+'Wall Weight Calculator'!$C$11*('Wall Weight Calculator'!$C$8+'Wall Weight Calculator'!$C$13+'Wall Weight Calculator'!$C$9))*('Wall Weight Calculator'!$E$16/1728)*(12/('Wall Weight Calculator'!$C$9+'Wall Weight Calculator'!$C$13))*(12/('Wall Weight Calculator'!$C$8+'Wall Weight Calculator'!$C$13))+'Wall Weight Calculator'!$C$13*('Wall Weight Calculator'!$G$7*('Wall Weight Calculator'!$C$7-('Wall Weight Calculator'!$C$10+'Wall Weight Calculator'!$C$11))+'Wall Weight Calculator'!$G$8*('Wall Weight Calculator'!$C$7-('Wall Weight Calculator'!$C$10+'Wall Weight Calculator'!$C$11))+'Wall Weight Calculator'!$G$9*('Wall Weight Calculator'!$C$7-('Wall Weight Calculator'!$C$10+'Wall Weight Calculator'!$C$11))+'Wall Weight Calculator'!$G$10*('Wall Weight Calculator'!$C$7-('Wall Weight Calculator'!$C$10+'Wall Weight Calculator'!$C$11))+'Wall Weight Calculator'!$G$11*('Wall Weight Calculator'!$C$7-('Wall Weight Calculator'!$C$10+'Wall Weight Calculator'!$C$11)))*'Wall Weight Calculator'!$E$16/1728*144/(('Wall Weight Calculator'!$C$8+'Wall Weight Calculator'!$C$13)*('Wall Weight Calculator'!$C$9+'Wall Weight Calculator'!$C$13))*12/B137) -> 2.271652222 | F137: =SUM(Calculations!$F$144:$F$149) -> 47.17936198 | G137: =IF('Wall Weight Calculator'!$H$17="Partial",IF('Wall Weight Calculator'!$B36="No Grout",(8/'Wall Weight Calculator'!$H$18),IF('Wall Weight Calculator'!$H$18="No Grout",8/'Wall Weight Calculator'!$B36,((('Wall Weight Calculator'!$B36/8-1)+('Wall Weight Calculator'!$H$18/8))/(('Wall Weight Calculator'!$B36/8)*('Wall Weight Calculator'!$H$18/8))))),IF('Wall Weight Calculator'!$H$17="No Grout",0,1)) -> 0.08333333333 | H137: 3.931613498 | I137: 30 | J137: 32 | K137: 35 | L137: 38 | M137: 40 | N137: 43 | O137: 46
A138: Hollow | B138: 104 | C138: =IF('Unit Configuration'!$D$50="Face shell","Face shell","Full") -> Full | D138: =((('Wall Weight Calculator'!$C$9*'Wall Weight Calculator'!$C$10+'Wall Weight Calculator'!$C$9*'Wall Weight Calculator'!$C$11)*'Wall Weight Calculator'!$C$8+'Wall Weight Calculator'!$G$7*('Wall Weight Calculator'!$C$7-('Wall Weight Calculator'!$C$10+'Wall Weight Calculator'!$C$11))*'Wall Weight Calculator'!$F$7+'Wall Weight Calculator'!$G$8*('Wall Weight Calculator'!$C$7-('Wall Weight Calculator'!$C$10+'Wall Weight Calculator'!$C$11))*'Wall Weight Calculator'!$F$8+'Wall Weight Calculator'!$G$9*('Wall Weight Calculator'!$C$7-('Wall Weight Calculator'!$C$10+'Wall Weight Calculator'!$C$11))*'Wall Weight Calculator'!$F$9+'Wall Weight Calculator'!$G$10*('Wall Weight Calculator'!$C$7-('Wall Weight Calculator'!$C$10+'Wall Weight Calculator'!$C$11))*'Wall Weight Calculator'!$F$10+'Wall Weight Calculator'!$G$11*('Wall Weight Calculator'!$C$7-('Wall Weight Calculator'!$C$10+'Wall Weight Calculator'!$C$11))*'Wall Weight Calculator'!$F$11))*(1/1728)*(12/('Wall Weight Calculator'!$C$9+'Wall Weight Calculator'!$C$13))*(12/('Wall Weight Calculator'!$C$8+'Wall Weight Calculator'!$C$13)) -> 0.2702382406 | E138: =IF($C138="Full",$E$126,'Wall Weight Calculator'!$C$13*('Wall Weight Calculator'!$C$10*('Wall Weight Calculator'!$C$8+'Wall Weight Calculator'!$C$13+'Wall Weight Calculator'!$C$9)+'Wall Weight Calculator'!$C$11*('Wall Weight Calculator'!$C$8+'Wall Weight Calculator'!$C$13+'Wall Weight Calculator'!$C$9))*('Wall Weight Calculator'!$E$16/1728)*(12/('Wall Weight Calculator'!$C$9+'Wall Weight Calculator'!$C$13))*(12/('Wall Weight Calculator'!$C$8+'Wall Weight Calculator'!$C$13))+'Wall Weight Calculator'!$C$13*('Wall Weight Calculator'!$G$7*('Wall Weight Calculator'!$C$7-('Wall Weight Calculator'!$C$10+'Wall Weight Calculator'!$C$11))+'Wall Weight Calculator'!$G$8*('Wall Weight Calculator'!$C$7-('Wall Weight Calculator'!$C$10+'Wall Weight Calculator'!$C$11))+'Wall Weight Calculator'!$G$9*('Wall Weight Calculator'!$C$7-('Wall Weight Calculator'!$C$10+'Wall Weight Calculator'!$C$11))+'Wall Weight Calculator'!$G$10*('Wall Weight Calculator'!$C$7-('Wall Weight Calculator'!$C$10+'Wall Weight Calculator'!$C$11))+'Wall Weight Calculator'!$G$11*('Wall Weight Calculator'!$C$7-('Wall Weight Calculator'!$C$10+'Wall Weight Calculator'!$C$11)))*'Wall Weight Calculator'!$E$16/1728*144/(('Wall Weight Calculator'!$C$8+'Wall Weight Calculator'!$C$13)*('Wall Weight Calculator'!$C$9+'Wall Weight Calculator'!$C$13))*12/B138) -> 2.271652222 | F138: =SUM(Calculations!$F$144:$F$149) -> 47.17936198 | G138: =IF('Wall Weight Calculator'!$H$17="Partial",IF('Wall Weight Calculator'!$B37="No Grout",(8/'Wall Weight Calculator'!$H$18),IF('Wall Weight Calculator'!$H$18="No Grout",8/'Wall Weight Calculator'!$B37,((('Wall Weight Calculator'!$B37/8-1)+('Wall Weight Calculator'!$H$18/8))/(('Wall Weight Calculator'!$B37/8)*('Wall Weight Calculator'!$H$18/8))))),IF('Wall Weight Calculator'!$H$17="No Grout",0,1)) -> 0.07692307692 | H138: 3.629181691 | I138: 29 | J138: 32 | K138: 35 | L138: 37 | M138: 40 | N138: 43 | O138: 46
A139: Hollow | B139: 112 | C139: =IF('Unit Configuration'!$D$50="Face shell","Face shell","Full") -> Full | D139: =((('Wall Weight Calculator'!$C$9*'Wall Weight Calculator'!$C$10+'Wall Weight Calculator'!$C$9*'Wall Weight Calculator'!$C$11)*'Wall Weight Calculator'!$C$8+'Wall Weight Calculator'!$G$7*('Wall Weight Calculator'!$C$7-('Wall Weight Calculator'!$C$10+'Wall Weight Calculator'!$C$11))*'Wall Weight Calculator'!$F$7+'Wall Weight Calculator'!$G$8*('Wall Weight Calculator'!$C$7-('Wall Weight Calculator'!$C$10+'Wall Weight Calculator'!$C$11))*'Wall Weight Calculator'!$F$8+'Wall Weight Calculator'!$G$9*('Wall Weight Calculator'!$C$7-('Wall Weight Calculator'!$C$10+'Wall Weight Calculator'!$C$11))*'Wall Weight Calculator'!$F$9+'Wall Weight Calculator'!$G$10*('Wall Weight Calculator'!$C$7-('Wall Weight Calculator'!$C$10+'Wall Weight Calculator'!$C$11))*'Wall Weight Calculator'!$F$10+'Wall Weight Calculator'!$G$11*('Wall Weight Calculator'!$C$7-('Wall Weight Calculator'!$C$10+'Wall Weight Calculator'!$C$11))*'Wall Weight Calculator'!$F$11))*(1/1728)*(12/('Wall Weight Calculator'!$C$9+'Wall Weight Calculator'!$C$13))*(12/('Wall Weight Calculator'!$C$8+'Wall Weight Calculator'!$C$13)) -> 0.2702382406 | E139: =IF($C139="Full",$E$126,'Wall Weight Calculator'!$C$13*('Wall Weight Calculator'!$C$10*('Wall Weight Calculator'!$C$8+'Wall Weight Calculator'!$C$13+'Wall Weight Calculator'!$C$9)+'Wall Weight Calculator'!$C$11*('Wall Weight Calculator'!$C$8+'Wall Weight Calculator'!$C$13+'Wall Weight Calculator'!$C$9))*('Wall Weight Calculator'!$E$16/1728)*(12/('Wall Weight Calculator'!$C$9+'Wall Weight Calculator'!$C$13))*(12/('Wall Weight Calculator'!$C$8+'Wall Weight Calculator'!$C$13))+'Wall Weight Calculator'!$C$13*('Wall Weight Calculator'!$G$7*('Wall Weight Calculator'!$C$7-('Wall Weight Calculator'!$C$10+'Wall Weight Calculator'!$C$11))+'Wall Weight Calculator'!$G$8*('Wall Weight Calculator'!$C$7-('Wall Weight Calculator'!$C$10+'Wall Weight Calculator'!$C$11))+'Wall Weight Calculator'!$G$9*('Wall Weight Calculator'!$C$7-('Wall Weight Calculator'!$C$10+'Wall Weight Calculator'!$C$11))+'Wall Weight Calculator'!$G$10*('Wall Weight Calculator'!$C$7-('Wall Weight Calculator'!$C$10+'Wall Weight Calculator'!$C$11))+'Wall Weight Calculator'!$G$11*('Wall Weight Calculator'!$C$7-('Wall Weight Calculator'!$C$10+'Wall Weight Calculator'!$C$11)))*'Wall Weight Calculator'!$E$16/1728*144/(('Wall Weight Calculator'!$C$8+'Wall Weight Calculator'!$C$13)*('Wall Weight Calculator'!$C$9+'Wall Weight Calculator'!$C$13))*12/B139) -> 2.271652222 | F139: =SUM(Calculations!$F$144:$F$149) -> 47.17936198 | G139: =IF('Wall Weight Calculator'!$H$17="Partial",IF('Wall Weight Calculator'!$B38="No Grout",(8/'Wall Weight Calculator'!$H$18),IF('Wall Weight Calculator'!$H$18="No Grout",8/'Wall Weight Calculator'!$B38,((('Wall Weight Calculator'!$B38/8-1)+('Wall Weight Calculator'!$H$18/8))/(('Wall Weight Calculator'!$B38/8)*('Wall Weight Calculator'!$H$18/8))))),IF('Wall Weight Calculator'!$H$17="No Grout",0,1)) -> 0.07142857143 | H139: 3.369954427 | I139: 29 | J139: 32 | K139: 35 | L139: 37 | M139: 40 | N139: 43 | O139: 45
A140: Hollow | B140: 120 | C140: =IF('Unit Configuration'!$D$50="Face shell","Face shell","Full") -> Full | D140: =((('Wall Weight Calculator'!$C$9*'Wall Weight Calculator'!$C$10+'Wall Weight Calculator'!$C$9*'Wall Weight Calculator'!$C$11)*'Wall Weight Calculator'!$C$8+'Wall Weight Calculator'!$G$7*('Wall Weight Calculator'!$C$7-('Wall Weight Calculator'!$C$10+'Wall Weight Calculator'!$C$11))*'Wall Weight Calculator'!$F$7+'Wall Weight Calculator'!$G$8*('Wall Weight Calculator'!$C$7-('Wall Weight Calculator'!$C$10+'Wall Weight Calculator'!$C$11))*'Wall Weight Calculator'!$F$8+'Wall Weight Calculator'!$G$9*('Wall Weight Calculator'!$C$7-('Wall Weight Calculator'!$C$10+'Wall Weight Calculator'!$C$11))*'Wall Weight Calculator'!$F$9+'Wall Weight Calculator'!$G$10*('Wall Weight Calculator'!$C$7-('Wall Weight Calculator'!$C$10+'Wall Weight Calculator'!$C$11))*'Wall Weight Calculator'!$F$10+'Wall Weight Calculator'!$G$11*('Wall Weight Calculator'!$C$7-('Wall Weight Calculator'!$C$10+'Wall Weight Calculator'!$C$11))*'Wall Weight Calculator'!$F$11))*(1/1728)*(12/('Wall Weight Calculator'!$C$9+'Wall Weight Calculator'!$C$13))*(12/('Wall Weight Calculator'!$C$8+'Wall Weight Calculator'!$C$13)) -> 0.2702382406 | E140: =IF($C140="Full",$E$126,'Wall Weight Calculator'!$C$13*('Wall Weight Calculator'!$C$10*('Wall Weight Calculator'!$C$8+'Wall Weight Calculator'!$C$13+'Wall Weight Calculator'!$C$9)+'Wall Weight Calculator'!$C$11*('Wall Weight Calculator'!$C$8+'Wall Weight Calculator'!$C$13+'Wall Weight Calculator'!$C$9))*('Wall Weight Calculator'!$E$16/1728)*(12/('Wall Weight Calculator'!$C$9+'Wall Weight Calculator'!$C$13))*(12/('Wall Weight Calculator'!$C$8+'Wall Weight Calculator'!$C$13))+'Wall Weight Calculator'!$C$13*('Wall Weight Calculator'!$G$7*('Wall Weight Calculator'!$C$7-('Wall Weight Calculator'!$C$10+'Wall Weight Calculator'!$C$11))+'Wall Weight Calculator'!$G$8*('Wall Weight Calculator'!$C$7-('Wall Weight Calculator'!$C$10+'Wall Weight Calculator'!$C$11))+'Wall Weight Calculator'!$G$9*('Wall Weight Calculator'!$C$7-('Wall Weight Calculator'!$C$10+'Wall Weight Calculator'!$C$11))+'Wall Weight Calculator'!$G$10*('Wall Weight Calculator'!$C$7-('Wall Weight Calculator'!$C$10+'Wall Weight Calculator'!$C$11))+'Wall Weight Calculator'!$G$11*('Wall Weight Calculator'!$C$7-('Wall Weight Calculator'!$C$10+'Wall Weight Calculator'!$C$11)))*'Wall Weight Calculator'!$E$16/1728*144/(('Wall Weight Calculator'!$C$8+'Wall Weight Calculator'!$C$13)*('Wall Weight Calculator'!$C$9+'Wall Weight Calculator'!$C$13))*12/B140) -> 2.271652222 | F140: =SUM(Calculations!$F$144:$F$149) -> 47.17936198 | G140: =IF('Wall Weight Calculator'!$H$17="Partial",IF('Wall Weight Calculator'!$B39="No Grout",(8/'Wall Weight Calculator'!$H$18),IF('Wall Weight Calculator'!$H$18="No Grout",8/'Wall Weight Calculator'!$B39,((('Wall Weight Calculator'!$B39/8-1)+('Wall Weight Calculator'!$H$18/8))/(('Wall Weight Calculator'!$B39/8)*('Wall Weight Calculator'!$H$18/8))))),IF('Wall Weight Calculator'!$H$17="No Grout",0,1)) -> 0.06666666667 | H140: 3.145290799 | I140: 29 | J140: 32 | K140: 34 | L140: 37 | M140: 40 | N140: 42 | O140: 45
D142: Grout Calculations
E143: Length | F143: Weight of Grout (lb/ft2)
D144: Cell 0 | E144: =IF(D41=TRUE,'Unit Configuration'!I44,0) -> 0 | F144: =IF($D41=FALSE,0,E144*('Wall Weight Calculator'!$C$7-('Wall Weight Calculator'!$C$10+'Wall Weight Calculator'!$C$11))*('Wall Weight Calculator'!$H$16*144*8)/(1728*('Wall Weight Calculator'!$C$9+'Wall Weight Calculator'!$C$13)*Calculations!$B$126)) -> 0
D145: Cell 1 | E145: =IF((D42=TRUE),('Unit Configuration'!I45-('Unit Configuration'!I44+F3)),0) -> 6.3125 | F145: =IF($D42=FALSE,0,E145*('Wall Weight Calculator'!$C$7-('Wall Weight Calculator'!$C$10+'Wall Weight Calculator'!$C$11))*('Wall Weight Calculator'!$H$16*144*8)/(1728*('Wall Weight Calculator'!$C$9+'Wall Weight Calculator'!$C$13)*Calculations!$B$126)) -> 23.58968099
D146: Cell 2 | E146: =IF(D43=TRUE,'Unit Configuration'!I46-('Unit Configuration'!I45+'Unit Configuration'!I44+F3),0) -> 6.3125 | F146: =IF($D43=FALSE,0,E146*('Wall Weight Calculator'!$C$7-('Wall Weight Calculator'!$C$10+'Wall Weight Calculator'!$C$11))*('Wall Weight Calculator'!$H$16*144*8)/(1728*('Wall Weight Calculator'!$C$9+'Wall Weight Calculator'!$C$13)*Calculations!$B$126)) -> 23.58968099
D147: Cell 3 | E147: =IF(D44=TRUE,('Unit Configuration'!I47-('Unit Configuration'!I46+F5+'Unit Configuration'!I45+F4+'Unit Configuration'!I44+F3)),0) -> 0 | F147: =IF($D44=FALSE,0,E147*('Wall Weight Calculator'!$C$7-('Wall Weight Calculator'!$C$10+'Wall Weight Calculator'!$C$11))*('Wall Weight Calculator'!$H$16*144*8)/(1728*('Wall Weight Calculator'!$C$9+'Wall Weight Calculator'!$C$13)*Calculations!$B$126)) -> 0
D148: Cell 4 | E148: =IF(D45=TRUE,('Unit Configuration'!I48-('Unit Configuration'!I47+F6+'Unit Configuration'!I46+F5+'Unit Configuration'!I45+F4+'Unit Configuration'!I44+F3)),0) -> 0 | F148: =IF($D45=FALSE,0,E148*('Wall Weight Calculator'!$C$7-('Wall Weight Calculator'!$C$10+'Wall Weight Calculator'!$C$11))*('Wall Weight Calculator'!$H$16*144*8)/(1728*('Wall Weight Calculator'!$C$9+'Wall Weight Calculator'!$C$13)*Calculations!$B$126)) -> 0
D149: Cell 5 | E149: =IF(D46=TRUE,'Wall Weight Calculator'!C9-(E144+F3+Calculations!E145+F4+Calculations!E146+F5+Calculations!E147+F6+Calculations!E148+F7),0) -> 0 | F149: =IF($D46=FALSE,0,E149*('Wall Weight Calculator'!$C$7-('Wall Weight Calculator'!$C$10+'Wall Weight Calculator'!$C$11))*('Wall Weight Calculator'!$H$16*144*8)/(1728*('Wall Weight Calculator'!$C$9+'Wall Weight Calculator'!$C$13)*Calculations!$B$126)) -> 0

Sheet Wall Weight Calculator
H1: Date | I1: ='Section Properties Calculator'!I1 -> 00:00:00
H2: Project Name: | I2: ='Section Properties Calculator'!I2 -> 0
H3: Project Number: | I3: ='Section Properties Calculator'!I3 -> 0
H4: Unit Description: | I4: ='Section Properties Calculator'!I4 -> 0
A6: General Unit Info | D6: Webs | E6: Location | F6: Height | G6: Thickness | H6: ASTM C90 Web and Face shell Requirements
A7: Specified Unit Width (in.) | C7: ='Unit Configuration'!F31 -> 7.625 | D7: X1 (in.) | E7: =IF(D7="","",'Unit Configuration'!I44) -> 0 | F7: =IF(D7="","",Calculations!H3) -> 7.625 | G7: =IF(D7="","",Calculations!F3) -> 1 | H7: Normalized Web Area? | I7: =IF(G12>=6.5,"Complies with ASTM C90","Does not comply") -> Complies with ASTM C90
A8: Specified Unit Height (in.) | C8: ='Unit Configuration'!F32 -> 7.625 | D8: X2 (in.) | E8: =IF(D8="","",'Unit Configuration'!I45) -> 7.3125 | F8: =IF(D8="","",Calculations!H4) -> 7.625 | G8: =IF(D8="","",Calculations!F4) -> 1 | H8: Faceshell Thicknesses? | I8: =IF(AND(Calculations!G13,Calculations!G14),"Complies with ASTM C90","Does not comply") -> Complies with ASTM C90
A9: Specified Unit Length (in.) | C9: ='Unit Configuration'!F33 -> 15.625 | D9: X3 (in.) | E9: =IF(D9="","",'Unit Configuration'!I46) -> 14.625 | F9: =IF(D9="","",Calculations!H5) -> 7.625 | G9: =IF(D9="","",Calculations!F5) -> 1 | H9: Web Thicknesses? | I9: ='Section Properties Calculator'!J9 -> Complies with ASTM C90
A10: First Faceshell Thickness (in.) | C10: ='Unit Configuration'!D37 -> 1.25 | D10: X4 (in.) | E10: =IF('Unit Configuration'!$D$41>3,'Unit Configuration'!I47,0) -> 0 | F10: =IF('Unit Configuration'!$D$41>3,Calculations!H6,0) -> 0 | G10: =IF('Unit Configuration'!$D$41>3,Calculations!F6,0) -> 0 | H10: =IF(AND('Unit Configuration'!N43="Yes",Calculations!G50=TRUE),"","The entered configuration cannot be partially grouted or have a full mortar bed. These values have been eliminated from consideration and will show as blank spaces on the table") -> The entered configuration cannot be partially grouted or have a full mortar bed. These values have been eliminated from consideration and will show as blank spaces on the table
A11: Second Faceshell Thickness (in.) | C11: =IF('Unit Configuration'!D36="Yes",'Unit Configuration'!D38,'Unit Configuration'!D37) -> 1.25 | D11: X5 (in.) | E11: =IF('Unit Configuration'!$D$41>3,'Unit Configuration'!I48,0) -> 0 | F11: =IF('Unit Configuration'!$D$41>3,Calculations!H7,0) -> 0 | G11: =IF('Unit Configuration'!$D$41>3,Calculations!F7,0) -> 0
A12: Mortar Info | D12: Normalized Web Area (in2/ft2) | G12: ='Section Properties Calculator'!G12 -> 25.734375
A13: Mortar Thickness (in.) | C13: ='Unit Configuration'!D30 -> 0.375 | D13: Block Volume (ft3/ft2) | G13: ='Unit Configuration'!D55 -> 0.2402117694
C15: Wall Assembly Configuration
C16: Mortar Density (lb/ft3) | E16: 125 | F16: Grout Density (lb/ft3) | H16: 140
C17: Mortar Bedding | E17: ='Unit Configuration'!D50 -> 0 | F17: Horizontal Grout Placement | H17: Partial
F18: Spacing of Horizontally Grouted Bond Beams (in.) | H18: No Grout
A20: Unit Configuration | B20: Vertical Grout Spacing (in.) | C20: Mortar Bedding | D20: Weight of Wall (psf) for CMU densities (pcf) of:
D21: 85 | E21: 95 | F21: 105 | G21: 115 | H21: 125 | I21: 135 | J21: 145
A22: =Calculations!A123 -> Hollow | B22: =Calculations!B123 -> No Grout | C22: =Calculations!C123 -> Face shell | D22: =Calculations!I123 -> 25 | E22: =Calculations!J123 -> 28 | F22: =Calculations!K123 -> 31 | G22: =Calculations!L123 -> 33 | H22: =Calculations!M123 -> 36 | I22: =Calculations!N123 -> 39 | J22: =Calculations!O123 -> 41
A23: =Calculations!A124 -> Hollow | B23: =Calculations!B124 -> No Grout | C23: =Calculations!C124 -> Full | D23: =Calculations!I124 -> 26 | E23: =Calculations!J124 -> 28 | F23: =Calculations!K124 -> 31 | G23: =Calculations!L124 -> 34 | H23: =Calculations!M124 -> 37 | I23: =Calculations!N124 -> 39 | J23: =Calculations!O124 -> 42
A24: =Calculations!A125 -> Solid | B24: =Calculations!B125 -> No Grout | C24: =Calculations!C125 -> Full | D24: =Calculations!I125 -> 56 | E24: =Calculations!J125 -> 62 | F24: =Calculations!K125 -> 68 | G24: =Calculations!L125 -> 74 | H24: =Calculations!M125 -> 80 | I24: =Calculations!N125 -> 86 | J24: =Calculations!O125 -> 92
A25: =Calculations!A126 -> Hollow | B25: =Calculations!B126 -> 8 | C25: =Calculations!C126 -> Full | D25: =Calculations!I126 -> 73 | E25: =Calculations!J126 -> 76 | F25: =Calculations!K126 -> 78 | G25: =Calculations!L126 -> 81 | H25: =Calculations!M126 -> 84 | I25: =Calculations!N126 -> 86 | J25: =Calculations!O126 -> 89
A26: =Calculations!A127 -> Hollow | B26: =Calculations!B127 -> 16 | C26: =Calculations!C127 -> Full | D26: =Calculations!I127 -> 49 | E26: =Calculations!J127 -> 52 | F26: =Calculations!K127 -> 55 | G26: =Calculations!L127 -> 57 | H26: =Calculations!M127 -> 60 | I26: =Calculations!N127 -> 63 | J26: =Calculations!O127 -> 66
A27: =Calculations!A128 -> Hollow | B27: =Calculations!B128 -> 24 | C27: =Calculations!C128 -> Full | D27: =Calculations!I128 -> 41 | E27: =Calculations!J128 -> 44 | F27: =Calculations!K128 -> 47 | G27: =Calculations!L128 -> 50 | H27: =Calculations!M128 -> 52 | I27: =Calculations!N128 -> 55 | J27: =Calculations!O128 -> 58
A28: =Calculations!A129 -> Hollow | B28: =Calculations!B129 -> 32 | C28: =Calculations!C129 -> Full | D28: =Calculations!I129 -> 38 | E28: =Calculations!J129 -> 40 | F28: =Calculations!K129 -> 43 | G28: =Calculations!L129 -> 46 | H28: =Calculations!M129 -> 48 | I28: =Calculations!N129 -> 51 | J28: =Calculations!O129 -> 54
A29: =Calculations!A130 -> Hollow | B29: =Calculations!B130 -> 40 | C29: =Calculations!C130 -> Full | D29: =Calculations!I130 -> 35 | E29: =Calculations!J130 -> 38 | F29: =Calculations!K130 -> 41 | G29: =Calculations!L130 -> 43 | H29: =Calculations!M130 -> 46 | I29: =Calculations!N130 -> 49 | J29: =Calculations!O130 -> 51
A30: =Calculations!A131 -> Hollow | B30: =Calculations!B131 -> 48 | C30: =Calculations!C131 -> Full | D30: =Calculations!I131 -> 34 | E30: =Calculations!J131 -> 36 | F30: =Calculations!K131 -> 39 | G30: =Calculations!L131 -> 42 | H30: =Calculations!M131 -> 44 | I30: =Calculations!N131 -> 47 | J30: =Calculations!O131 -> 50
A31: =Calculations!A132 -> Hollow | B31: =Calculations!B132 -> 56 | C31: =Calculations!C132 -> Full | D31: =Calculations!I132 -> 32 | E31: =Calculations!J132 -> 35 | F31: =Calculations!K132 -> 38 | G31: =Calculations!L132 -> 41 | H31: =Calculations!M132 -> 43 | I31: =Calculations!N132 -> 46 | J31: =Calculations!O132 -> 49
A32: =Calculations!A133 -> Hollow | B32: =Calculations!B133 -> 64 | C32: =Calculations!C133 -> Full | D32: =Calculations!I133 -> 32 | E32: =Calculations!J133 -> 34 | F32: =Calculations!K133 -> 37 | G32: =Calculations!L133 -> 40 | H32: =Calculations!M133 -> 42 | I32: =Calculations!N133 -> 45 | J32: =Calculations!O133 -> 48
A33: =Calculations!A134 -> Hollow | B33: =Calculations!B134 -> 72 | C33: =Calculations!C134 -> Full | D33: =Calculations!I134 -> 31 | E33: =Calculations!J134 -> 34 | F33: =Calculations!K134 -> 36 | G33: =Calculations!L134 -> 39 | H33: =Calculations!M134 -> 42 | I33: =Calculations!N134 -> 44 | J33: =Calculations!O134 -> 47
A34: =Calculations!A135 -> Hollow | B34: =Calculations!B135 -> 80 | C34: =Calculations!C135 -> Full | D34: =Calculations!I135 -> 30 | E34: =Calculations!J135 -> 33 | F34: =Calculations!K135 -> 36 | G34: =Calculations!L135 -> 39 | H34: =Calculations!M135 -> 41 | I34: =Calculations!N135 -> 44 | J34: =Calculations!O135 -> 47
A35: =Calculations!A136 -> Hollow | B35: =Calculations!B136 -> 88 | C35: =Calculations!C136 -> Full | D35: =Calculations!I136 -> 30 | E35: =Calculations!J136 -> 33 | F35: =Calculations!K136 -> 35 | G35: =Calculations!L136 -> 38 | H35: =Calculations!M136 -> 41 | I35: =Calculations!N136 -> 44 | J35: =Calculations!O136 -> 46
A36: =Calculations!A137 -> Hollow | B36: =Calculations!B137 -> 96 | C36: =Calculations!C137 -> Full | D36: =Calculations!I137 -> 30 | E36: =Calculations!J137 -> 32 | F36: =Calculations!K137 -> 35 | G36: =Calculations!L137 -> 38 | H36: =Calculations!M137 -> 40 | I36: =Calculations!N137 -> 43 | J36: =Calculations!O137 -> 46
A37: =Calculations!A138 -> Hollow | B37: =Calculations!B138 -> 104 | C37: =Calculations!C138 -> Full | D37: =Calculations!I138 -> 29 | E37: =Calculations!J138 -> 32 | F37: =Calculations!K138 -> 35 | G37: =Calculations!L138 -> 37 | H37: =Calculations!M138 -> 40 | I37: =Calculations!N138 -> 43 | J37: =Calculations!O138 -> 46
A38: =Calculations!A139 -> Hollow | B38: =Calculations!B139 -> 112 | C38: =Calculations!C139 -> Full | D38: =Calculations!I139 -> 29 | E38: =Calculations!J139 -> 32 | F38: =Calculations!K139 -> 35 | G38: =Calculations!L139 -> 37 | H38: =Calculations!M139 -> 40 | I38: =Calculations!N139 -> 43 | J38: =Calculations!O139 -> 45
A39: =Calculations!A140 -> Hollow | B39: =Calculations!B140 -> 120 | C39: =Calculations!C140 -> Full | D39: =Calculations!I140 -> 29 | E39: =Calculations!J140 -> 32 | F39: =Calculations!K140 -> 34 | G39: =Calculations!L140 -> 37 | H39: =Calculations!M140 -> 40 | I39: =Calculations!N140 -> 42 | J39: =Calculations!O140 -> 45

Sheet STC_OITC Calculator (hidden)
H1: Date | I1: ='Wall Weight Calculator'!I1:K1 -> 00:00:00
H2: Project Name: | I2: ='Wall Weight Calculator'!I2 -> 0
H3: Project Number: | I3: ='Wall Weight Calculator'!I3 -> 0
H4: Unit Description: | I4: ='Wall Weight Calculator'!I4 -> 0
A6: General Unit Info | D6: Webs | E6: Location | F6: Height | G6: Thickness | H6: ASTM C90 Web and Face shell Requirements
A7: Specified Unit Width (in.) | C7: ='Unit Configuration'!F31 -> 7.625 | D7: =IF('Unit Configuration'!F44="","","X1 (in.)") -> X1 (in.) | E7: =IF(D7="","",'Unit Configuration'!I44) -> 0 | F7: =IF(D7="","",Calculations!H3) -> 7.625 | G7: =IF(D7="","",Calculations!F3) -> 1 | H7: Normalized Web Area? | I7: =IF(G12>=6.5,"Complies with ASTM C90","Does not comply") -> Complies with ASTM C90
A8: Specified Unit Height (in.) | C8: ='Unit Configuration'!F32 -> 7.625 | D8: =IF('Unit Configuration'!F45="","","X2 (in.)") -> X2 (in.) | E8: =IF(D8="","",'Unit Configuration'!I45) -> 7.3125 | F8: =IF(D8="","",Calculations!H4) -> 7.625 | G8: =IF(D8="","",Calculations!F4) -> 1 | H8: Faceshell Thicknesses? | I8: =IF(AND(Calculations!G13,Calculations!G14),"Complies with ASTM C90","Does not comply") -> Complies with ASTM C90
A9: Specified Unit Length (in.) | C9: ='Unit Configuration'!F33 -> 15.625 | D9: =IF('Unit Configuration'!F46="","","X3 (in.)") -> X3 (in.) | E9: =IF(D9="","",'Unit Configuration'!I46) -> 14.625 | F9: =IF(D9="","",Calculations!H5) -> 7.625 | G9: =IF(D9="","",Calculations!F5) -> 1 | H9: Web Thicknesses? | I9: ='Section Properties Calculator'!J9 -> Complies with ASTM C90
A10: First Faceshell Thickness (in.) | C10: ='Unit Configuration'!D37 -> 1.25 | D10: X4 (in.) | E10: =IF('Unit Configuration'!$D$41>3,'Unit Configuration'!I47,0) -> 0 | F10: =IF('Unit Configuration'!$D$41>3,Calculations!H6,0) -> 0 | G10: =IF('Unit Configuration'!$D$41>3,Calculations!F6,0) -> 0 | H10: The following STC/OITC calculations were based off of TMS 302
A11: Second Faceshell Thickness (in.) | C11: =IF('Unit Configuration'!D36="Yes",'Unit Configuration'!D38,'Unit Configuration'!D37) -> 1.25 | D11: X5 (in.) | E11: =IF('Unit Configuration'!$D$41>3,'Unit Configuration'!I48,0) -> 0 | F11: =IF('Unit Configuration'!$D$41>3,Calculations!H7,0) -> 0 | G11: =IF('Unit Configuration'!$D$41>3,Calculations!F7,0) -> 0
A12: Mortar Info | D12: Normalized Web Area (in2/ft2) | G12: ='Section Properties Calculator'!G12 -> 25.734375
A13: Mortar Thickness (in.) | C13: ='Unit Configuration'!D30 -> 0.375 | D13: Block Volume (ft3/ft2) | G13: ='Unit Configuration'!D55 -> 0.2402117694
C15: Wall Assembly Configuration
C16: Mortar Density (lb/ft3) | E16: ='Wall Weight Calculator'!E16 -> 125 | F16: Grout Density (lb/ft3) | H16: ='Wall Weight Calculator'!H16 -> 140
C17: Mortar Bedding | E17: ='Wall Weight Calculator'!E17 -> 0 | F17: Grouting Placement | H17: ='Wall Weight Calculator'!H17 -> Partial
F18: Horizontal Spacing (in.) | H18: ='Wall Weight Calculator'!H18 -> No Grout
A22: Option 1: Calculate STC/OITC Ratings Based on Wall Weight
A23: Wall Weight (psf)
A24: Calculated STC (dB) | B24: =(20.5)*(B23^0.234) -> 0
A25: Calculated OITC (dB) | B25: =(14.7)*(B23^0.29) -> 0
A27: Option 2: Calculate Required Wall Weight Based on Desired STC/OITC
A28: Desired STC Rating (dB)
A29: Required Wall Weight (psf) | B29: =(B28/20.5)^4.274 -> 0
A31: Desired OITC Rating (dB)
A32: Required Wall Weight (psf) | B32: =(B31/14.7)^3.45 -> 0
A35: Option 3: Calculate STC/OITC Ratings with Finishes
A36: Do you wish to adjust the STC or OITC based on finishes?
A37: What type of finish do you wish to add to the CMU wall?
A38: Is sound absorbing material present in the furring space?
A39: =IF(C39="No","","What is the thickness of the furring space on one side of the wall?") -> What is the thickness of the furring space on one side of the wall?
A40: =IF(OR(C37="Clay/CMU Wythe on one side of the wall and Drywall on the other side of the wall",C37="Clay/CMU Veneer Wythe",C36="OITC"),"What is the weight (psf) of the veneer material?","") -> 
A42: =IF(C36="STC","Adjusted input wall weight STC based on finishes (dB)","") ->  | B42: =IF(C37="Clay/CMU Veneer Wythe",'STC_OITC Lookup Table'!B14,INDEX('STC_OITC Lookup Table'!$B$2:'STC_OITC Lookup Table'!$H$14,13,MATCH('STC_OITC Calculator'!$C$37&'STC_OITC Calculator'!$C$38,'STC_OITC Lookup Table'!$B$2:$H$2&'STC_OITC Lookup Table'!$B$3:$H$3,0))) -> 
A43: =IF(C36="OITC","Adjusted input wall weight OITC based on finishes (dB)","") ->  | B43: ='STC_OITC Lookup Table'!B22 -> 

Sheet STC_OITC Lookup Table (hidden)
A1: STC Finishes
B2: Clay/CMU Veneer Wythe | C2: Drywall on one side of the wall | D2: Drywall on one side of the wall | E2: Drywall on both sides of the Wall | F2: Drywall on both sides of the Wall | G2: Clay/CMU Wythe on one side of the wall and Drywall on the other side of the wall | H2: Clay/CMU Wythe on one side of the wall and Drywall on the other side of the wall
A3: Furring Material Present? | C3: No | D3: Yes | E3: No | F3: Yes | G3: No | H3: Yes
A4: Block Weight (psf) | B4: ='STC_OITC Calculator'!$B$23 -> 0 | C4: ='STC_OITC Calculator'!$B$23 -> 0 | D4: ='STC_OITC Calculator'!$B$23 -> 0 | E4: ='STC_OITC Calculator'!$B$23 -> 0 | F4: ='STC_OITC Calculator'!$B$23 -> 0 | G4: ='STC_OITC Calculator'!$B$23 -> 0 | H4: ='STC_OITC Calculator'!$B$23 -> 0
A5: Block STC | C5: ='STC_OITC Calculator'!$B$24 -> 0 | D5: ='STC_OITC Calculator'!$B$24 -> 0 | E5: ='STC_OITC Calculator'!$B$24 -> 0 | F5: ='STC_OITC Calculator'!$B$24 -> 0
A6: Wythe Weight (psf) | B6: ='STC_OITC Calculator'!$C$40 -> 0 | G6: ='STC_OITC Calculator'!$C$40 -> 0 | H6: ='STC_OITC Calculator'!$C$40 -> 0
A7: Thickness of the furring space on one side | C7: ='STC_OITC Calculator'!$C$39 -> 0 | D7: ='STC_OITC Calculator'!$C$39 -> 0 | E7: ='STC_OITC Calculator'!$C$39 -> 0 | F7: ='STC_OITC Calculator'!$C$39 -> 0 | G7: ='STC_OITC Calculator'!$C$39 -> 0 | H7: ='STC_OITC Calculator'!$C$39 -> 0
A8: Eqn 1 of TEK Note 13-1C | B8: =ROUNDDOWN(20.5*(B4+B6)^0.234,0) -> 0 | G8: =ROUNDDOWN(20.5*(G4+G6)^0.234,0) -> 0 | H8: =ROUNDDOWN(20.5*(H4+H6)^0.234,0) -> 0
A9: Eqn 2 of TEK Note 13-1C | B9: =19.6*(B4+B6)^0.23 -> 0 | G9: =19.6*(G4+G6)^0.23 -> 0 | H9: =19.6*(H4+H6)^0.23 -> 0
A10: Eqn 3 of TEK Note 13-1C | C10: =2.8*C7-1.22 -> -1.22 | G10: =2.8*G7-1.22 -> -1.22
A11: Eqn 4 of TEK Note 13-1C | E11: =3.6*E7-2.78 -> -2.78
A12: Eqn 5 of TEK Note 13-1C | D12: =3*D7+1.87 -> 1.87 | H12: =3*H7+1.87 -> 1.87
A13: Eqn 6 of TEK Note 13-1C | F13: =11.2*F7-7.37 -> -7.37
A14: Total STC | B14: =ROUNDDOWN(B8*(B4/SUM(B4,B6))+B9*(B6/SUM(B4,B6)),0) ->  | C14: =ROUNDDOWN($C$5+C10,0) -> -1 | D14: =ROUNDDOWN($C$5+D12,0) -> 1 | E14: =ROUNDDOWN($C$5+E11,0) -> -2 | F14: =ROUNDDOWN($C$5+F13,0) -> -7 | G14: =ROUNDDOWN(G8*(G4/SUM(G4,G6))+G9*(G6/SUM(G4,G6))+G10,0) ->  | H14: =ROUNDDOWN(H8*(H4/SUM(H4,H6))+H9*(H6/SUM(H4,H6))+H12,0) -> 
A16: OITC Finishes
B17: Clay/CMU Veneer Wythe
A18: Block Weight (psf) | B18: ='STC_OITC Calculator'!$B$23 -> 0
A19: Wythe Weight (psf) | B19: ='STC_OITC Calculator'!$C$40 -> 0
A20: Eqn 1 of TEK Note 13-1C | B20: =ROUNDDOWN(14.7*(B18+B19)^0.29,0) -> 0
A21: Eqn 2 of TEK Note 13-1C | B21: =17.4*(B18+B19)^0.224 -> 0
A22: Total STC | B22: =ROUNDDOWN(B20*(B18/SUM(B18,B19))+B21*(B19/SUM(B18,B19)),0) -> 
